Workbook

Sheet Données
A1: Conc | B1: Vitesse | C1: Groupes
A2: 0.2 | B2: 211 | C2: a
A3: 2.1 | B3: 692 | C3: a
A4: 3.8 | B4: 946 | C4: a
A5: 5.5 | B5: 1178 | C5: a
A6: 7.6 | B6: 1321 | C6: a
A7: 9.8 | B7: 1432 | C7: a
A8: 12.4 | B8: 1504 | C8: a
A9: 13.6 | B9: 1546 | C9: a
A10: 15.1 | B10: 1584 | C10: a
A11: 17.5 | B11: 1621 | C11: a
A12: 0.2 | B12: 562 | C12: b
A13: 2.1 | B13: 1201 | C13: b
A14: 3.8 | B14: 1588 | C14: b
A15: 5.5 | B15: 1613 | C15: b
A16: 7.6 | B16: 1661 | C16: b
A17: 9.8 | B17: 1685 | C17: b
A18: 12.4 | B18: 1710 | C18: b
A19: 13.6 | B19: 1754 | C19: b
A20: 15.1 | B20: 1791 | C20: b
A21: 17.5 | B21: 1804 | C21: b

Sheet Régression non linéaire1
B1: XLSTAT 2022.2.1.12345 - Régression non linéaire - Début : 27/04/2022 à 17:55:26 / Fin : 27/04/2022 à 17:55:27 / Microsoft Excel 15.05441
B2: Y / Variables dépendantes : Classeur = demoNLI_fr.xlsm / Feuille = Données / Plage = 'Données'!$B:$B / 20 lignes et 1 colonne
B3: X / Quantitatives : Classeur = demoNLI_fr.xlsm / Feuille = Données / Plage = 'Données'!$A:$A / 20 lignes et 1 colonne
B4: Groupes : Classeur = demoNLI_fr.xlsm / Feuille = Données / Plage = 'Données'!$C:$C / 20 lignes et 1 colonne
B5: Conditions d'arrêt : Itérations : 200 Convergence : 0,00001
B6: Cinétique enzymatique : Michaelis-Menten = pr1*X1/(pr2+X1)
B11: Statistiques descriptives :
B13: Variable | C13: Observations | D13: Obs. avec données manquantes | E13: Obs. sans données manquantes | F13: Minimum | G13: Maximum | H13: Moyenne | I13: Ecart-type
B14: Vitesse | C14: 20 | D14: 0 | E14: 20 | F14: 211 | G14: 1804 | H14: 1370.2 | I14: 446.2790725
B15: Conc | C15: 20 | D15: 0 | E15: 20 | F15: 0.2 | G15: 17.5 | H15: 8.76 | I15: 5.698974977
B18: Régression non linéaire de la variable Vitesse
B20: Coefficients d'ajustement :
B22: Statistique | C22: Complet(a) | D22: Complet(b)
B23: Observations | C23: 10 | D23: 10
B24: DDL | C24: 8 | D24: 8
B25: SCE | C25: 14699.29701 | D25: 60403.21418
B26: MCE | C26: 1837.412126 | D26: 7550.401773
B27: RMCE | C27: 42.86504551 | D27: 86.8930479
B28: AIC | C28: 78.92969856 | D28: 93.06212504
B29: AICC | C29: 82.92969856 | D29: 97.06212504
B30: Itérations | C30: 4 | D30: 9
B33: Paramètres du modèle :
B35: Paramètres | C35: Valeur(a) | D35: Erreur standard(a) | E35: Borne inférieure (95%) | F35: Borne supérieure (95%) | G35: Valeur(b) | H35: Erreur standard(b) | I35: Borne inférieure (95%) | J35: Borne supérieure (95%)
B36: pr1 | C36: 1981.831682 | D36: 56.96275462 | E36: 1850.475335 | F36: 2113.188028 | G36: 1820.828724 | H36: 47.04393449 | I36: 1712.345218 | J36: 1929.312231
B37: pr2 | C37: 3.8548768 | D37: 0.3685371263 | E37: 3.00502867 | F37: 4.704724929 | G37: 0.6768047489 | H37: 0.1458923988 | I37: 0.3403762771 | J37: 1.013233221
B40: Equation du modèle :
B42: Vitesse(a) = 1981,83*Conc/(3,85488+Conc)
B44: Vitesse(b) = 1820,83*Conc/(0,676805+Conc)
B47: Prédictions et résidus :
B49: Observations | C49: Conc | D49: Vitesse | E49: Préd(Vitesse) | F49: Résidus | G49: IC Borne inférieure (95%) | H49: IC Borne supérieure (95%) | I49: IP Borne inférieure (95%) | J49: IP Borne supérieure (95%)
B50: Obs1(a) | C50: 0.2 | D50: 211 | E50: 97.75052508 | F50: 113.2494749 | G50: 83.0904113 | H50: 112.4106389 | I50: -2.177662482 | J50: 197.6787126
B51: Obs2(a) | C51: 2.1 | D51: 692 | E51: 698.897168 | F51: -6.897168032 | G51: 639.7012628 | H51: 758.0930733 | I51: 583.6805072 | J51: 814.1138289
B52: Obs3(a) | C52: 3.8 | D52: 946 | E52: 983.8120961 | F52: -37.81209613 | G52: 929.5894094 | H52: 1038.034783 | I52: 871.0698082 | J52: 1096.554384
B53: Obs4(a) | C53: 5.5 | D53: 1178 | E53: 1165.175606 | F53: 12.82439353 | G53: 1120.789398 | H53: 1209.561815 | I53: 1056.820361 | J53: 1273.530852
B54: Obs5(a) | C54: 7.6 | D54: 1321 | E54: 1314.891556 | F54: 6.108443933 | G54: 1278.764912 | H54: 1351.0182 | I54: 1209.649653 | J54: 1420.133459
B55: Obs6(a) | C55: 9.8 | D55: 1432 | E55: 1422.345347 | F55: 9.654653062 | G55: 1387.589438 | H55: 1457.101255 | I55: 1317.56607 | J55: 1527.124624
B56: Obs7(a) | C56: 12.4 | D56: 1504 | E56: 1511.836303 | F56: -7.836303273 | G56: 1472.3025 | H56: 1551.370106 | I56: 1405.376709 | J56: 1618.295898
B57: Obs8(a) | C57: 13.6 | D57: 1546 | E57: 1544.147872 | F57: 1.852127853 | G57: 1501.472302 | H57: 1586.823442 | I57: 1436.482056 | J57: 1651.813689
B58: Obs9(a) | C58: 15.1 | D58: 1584 | E58: 1578.784115 | F58: 5.215885107 | G58: 1531.996214 | H58: 1625.572015 | I58: 1469.423101 | J58: 1688.145129
B59: Obs10(a) | C59: 17.5 | D59: 1621 | E59: 1624.081223 | F59: -3.081222855 | G59: 1570.888032 | H59: 1677.274414 | I59: 1511.830435 | J59: 1736.33201
B60: Obs11(b) | C60: 0.2 | D60: 562 | E60: 415.3327697 | F60: 146.6672303 | G60: 273.2641892 | H60: 557.4013502 | I60: 169.7031438 | J60: 660.9623956
B61: Obs12(b) | C61: 2.1 | D61: 1201 | E61: 1377.028875 | F61: -176.0288754 | G61: 1257.253989 | H61: 1496.803762 | I61: 1143.584118 | J61: 1610.473633
B62: Obs13(b) | C62: 3.8 | D62: 1588 | E62: 1545.555265 | F62: 42.44473463 | G62: 1467.00195 | H62: 1624.108581 | I62: 1330.331998 | J62: 1760.778533
B63: Obs14(b) | C63: 5.5 | D63: 1613 | E63: 1621.316909 | F63: -8.316908961 | G63: 1554.023717 | H63: 1688.610101 | I63: 1409.943294 | J63: 1832.690524
B64: Obs15(b) | C64: 7.6 | D64: 1661 | E64: 1671.937266 | F64: -10.93726604 | G64: 1604.549282 | H64: 1739.32525 | I64: 1460.533454 | J64: 1883.341078
B65: Obs16(b) | C65: 9.8 | D65: 1685 | E65: 1703.202639 | F65: -18.20263899 | G65: 1631.857085 | H65: 1774.548193 | I65: 1490.504215 | J65: 1915.901063
B66: Obs17(b) | C66: 12.4 | D66: 1710 | E66: 1726.589684 | F66: -16.58968401 | G66: 1650.397884 | H66: 1802.781484 | I66: 1512.21706 | J66: 1940.962308
B67: Obs18(b) | C67: 13.6 | D67: 1754 | E67: 1734.510703 | F67: 19.48929654 | G67: 1656.341232 | H67: 1812.680175 | I67: 1519.427236 | J67: 1949.594171
B68: Obs19(b) | C68: 15.1 | D68: 1791 | E68: 1742.7175 | F68: 48.28249972 | G68: 1662.331948 | H68: 1823.103053 | I68: 1526.818754 | J68: 1958.616246
B69: Obs20(b) | C69: 17.5 | D69: 1804 | E69: 1753.031026 | F69: 50.96897433 | G69: 1669.631969 | H69: 1836.430083 | I69: 1535.99224 | J69: 1970.069811

Sheet XLSTAT_20220427_175524_1_HID (hidden)
A1: 1 | C1: =0.2+(A1-1)*0.0869346734 -> 0.2 | D1: =1981.83168151597*C1/(3.8548767995521+C1) -> 97.75052508 | E1: 1 | G1: =0.2+(E1-1)*0.0869346734 -> 0.2 | H1: =1820.82872413489*G1/(0.676804748900211+G1) -> 415.3327697
A2: 2 | C2: 0.2869346734 | D2: 137.2965018 | E2: 2 | G2: 0.2869346734 | H2: 542.1163472
A3: 3 | C3: 0.3738693468 | D3: 175.216504 | E3: 3 | G3: 0.3738693468 | H3: 647.9193201
A4: 4 | C4: 0.4608040202 | D4: 211.6087923 | E4: 4 | G4: 0.4608040202 | H4: 737.5516249
A5: 5 | C5: 0.5477386936 | D5: 246.5638659 | E5: 5 | G5: 0.5477386936 | H5: 814.4573006
A6: 6 | C6: 0.634673367 | D6: 280.1652147 | E6: 6 | G6: 0.634673367 | H6: 881.1671983
A7: 7 | C7: 0.7216080404 | D7: 312.4899844 | E7: 7 | G7: 0.7216080404 | H7: 939.582831
A8: 8 | C8: 0.8085427138 | D8: 343.6095684 | E8: 8 | G8: 0.8085427138 | H8: 991.1605432
A9: 9 | C9: 0.8954773872 | D9: 373.5901338 | E9: 9 | G9: 0.8954773872 | H9: 1037.034582
A10: 10 | C10: 0.9824120606 | D10: 402.4930911 | E10: 10 | G10: 0.9824120606 | H10: 1078.101481
A11: 11 | C11: 1.069346734 | D11: 430.3755143 | E11: 11 | G11: 1.069346734 | H11: 1115.079229
A12: 12 | C12: 1.156281407 | D12: 457.2905167 | E12: 12 | G12: 1.156281407 | H12: 1148.549615
A13: 13 | C13: 1.243216081 | D13: 483.2875889 | E13: 13 | G13: 1.243216081 | H13: 1178.989058
A14: 14 | C14: 1.330150754 | D14: 508.4129021 | E14: 14 | G14: 1.330150754 | H14: 1206.79143
A15: 15 | C15: 1.417085428 | D15: 532.7095823 | E15: 15 | G15: 1.417085428 | H15: 1232.285189
A16: 16 | C16: 1.504020101 | D16: 556.217957 | E16: 16 | G16: 1.504020101 | H16: 1255.746422
A17: 17 | C17: 1.590954774 | D17: 578.9757786 | E17: 17 | G17: 1.590954774 | H17: 1277.40888
A18: 18 | C18: 1.677889448 | D18: 601.0184268 | E18: 18 | G18: 1.677889448 | H18: 1297.471793
A19: 19 | C19: 1.764824121 | D19: 622.3790919 | E19: 19 | G19: 1.764824121 | H19: 1316.106019
A20: 20 | C20: 1.851758795 | D20: 643.0889418 | E20: 20 | G20: 1.851758795 | H20: 1333.458917
A21: 21 | C21: 1.938693468 | D21: 663.1772738 | E21: 21 | G21: 1.938693468 | H21: 1349.658253
A22: 22 | C22: 2.025628141 | D22: 682.6716525 | E22: 22 | G22: 2.025628141 | H22: 1364.815355
A23: 23 | C23: 2.112562815 | D23: 701.5980364 | E23: 23 | G23: 2.112562815 | H23: 1379.027671
A24: 24 | C24: 2.199497488 | D24: 719.9808929 | E24: 24 | G24: 2.199497488 | H24: 1392.380868
A25: 25 | C25: 2.286432162 | D25: 737.8433041 | E25: 25 | G25: 2.286432162 | H25: 1404.95056
A26: 26 | C26: 2.373366835 | D26: 755.2070634 | E26: 26 | G26: 2.373366835 | H26: 1416.803739
A27: 27 | C27: 2.460301508 | D27: 772.0927641 | E27: 27 | G27: 2.460301508 | H27: 1427.999975
A28: 28 | C28: 2.547236182 | D28: 788.5198809 | E28: 28 | G28: 2.547236182 | H28: 1438.592408
A29: 29 | C29: 2.634170855 | D29: 804.5068449 | E29: 29 | G29: 2.634170855 | H29: 1448.628601
A30: 30 | C30: 2.721105529 | D30: 820.0711128 | E30: 30 | G30: 2.721105529 | H30: 1458.151247
A31: 31 | C31: 2.808040202 | D31: 835.2292298 | E31: 31 | G31: 2.808040202 | H31: 1467.198779
A32: 32 | C32: 2.894974875 | D32: 849.9968891 | E32: 32 | G32: 2.894974875 | H32: 1475.80589
A33: 33 | C33: =0.2+(A33-1)*0.0869346734 -> 2.981909549 | D33: =1981.83168151597*C33/(3.8548767995521+C33) -> 864.3889854 | E33: 33 | G33: =0.2+(E33-1)*0.0869346734 -> 2.981909549 | H33: =1820.82872413489*G33/(0.676804748900211+G33) -> 1484.003974
A34: 34 | C34: 3.068844222 | D34: 878.4196657 | E34: 34 | G34: 3.068844222 | H34: 1491.821512
A35: 35 | C35: 3.155778896 | D35: 892.1023749 | E35: 35 | G35: 3.155778896 | H35: 1499.284397
A36: 36 | C36: 3.242713569 | D36: 905.4498994 | E36: 36 | G36: 3.242713569 | H36: 1506.416231
A37: 37 | C37: 3.329648242 | D37: 918.4744067 | E37: 37 | G37: 3.329648242 | H37: 1513.238561
A38: 38 | C38: 3.416582916 | D38: 931.1874823 | E38: 38 | G38: 3.416582916 | H38: 1519.771109
A39: 39 | C39: 3.503517589 | D39: 943.6001644 | E39: 39 | G39: 3.503517589 | H39: 1526.031953
A40: 40 | C40: 3.590452263 | D40: 955.7229755 | E40: 40 | G40: 3.590452263 | H40: 1532.037699
A41: 41 | C41: 3.677386936 | D41: 967.5659524 | E41: 41 | G41: 3.677386936 | H41: 1537.803626
A42: 42 | C42: 3.764321609 | D42: 979.1386737 | E42: 42 | G42: 3.764321609 | H42: 1543.343819
A43: 43 | C43: 3.851256283 | D43: 990.4502859 | E43: 43 | G43: 3.851256283 | H43: 1548.671278
A44: 44 | C44: 3.938190956 | D44: 1001.509527 | E44: 44 | G44: 3.938190956 | H44: 1553.798025
A45: 45 | C45: 4.02512563 | D45: 1012.324751 | E45: 45 | G45: 4.02512563 | H45: 1558.735195
A46: 46 | C46: 4.112060303 | D46: 1022.903944 | E46: 46 | G46: 4.112060303 | H46: 1563.49311
A47: 47 | C47: 4.198994976 | D47: 1033.254751 | E47: 47 | G47: 4.198994976 | H47: 1568.08136
A48: 48 | C48: 4.28592965 | D48: 1043.384487 | E48: 48 | G48: 4.28592965 | H48: 1572.508861
A49: 49 | C49: 4.372864323 | D49: 1053.300162 | E49: 49 | G49: 4.372864323 | H49: 1576.783914
A50: 50 | C50: 4.459798997 | D50: 1063.008488 | E50: 50 | G50: 4.459798997 | H50: 1580.914261
A51: 51 | C51: 4.54673367 | D51: 1072.515902 | E51: 51 | G51: 4.54673367 | H51: 1584.907127
A52: 52 | C52: 4.633668343 | D52: 1081.828578 | E52: 52 | G52: 4.633668343 | H52: 1588.769262
A53: 53 | C53: 4.720603017 | D53: 1090.952438 | E53: 53 | G53: 4.720603017 | H53: 1592.506985
A54: 54 | C54: 4.80753769 | D54: 1099.893167 | E54: 54 | G54: 4.80753769 | H54: 1596.126211
A55: 55 | C55: 4.894472364 | D55: 1108.656223 | E55: 55 | G55: 4.894472364 | H55: 1599.632488
A56: 56 | C56: 4.981407037 | D56: 1117.24685 | E56: 56 | G56: 4.981407037 | H56: 1603.031022
A57: 57 | C57: 5.06834171 | D57: 1125.670089 | E57: 57 | G57: 5.06834171 | H57: 1606.326703
A58: 58 | C58: 5.155276384 | D58: 1133.930784 | E58: 58 | G58: 5.155276384 | H58: 1609.524132
A59: 59 | C59: 5.242211057 | D59: 1142.033596 | E59: 59 | G59: 5.242211057 | H59: 1612.627637
A60: 60 | C60: 5.329145731 | D60: 1149.983007 | E60: 60 | G60: 5.329145731 | H60: 1615.641297
A61: 61 | C61: 5.416080404 | D61: 1157.783333 | E61: 61 | G61: 5.416080404 | H61: 1618.568958
A62: 62 | C62: 5.503015077 | D62: 1165.43873 | E62: 62 | G62: 5.503015077 | H62: 1621.414249
A63: 63 | C63: 5.589949751 | D63: 1172.953199 | E63: 63 | G63: 5.589949751 | H63: 1624.180598
A64: 64 | C64: 5.676884424 | D64: 1180.330596 | E64: 64 | G64: 5.676884424 | H64: 1626.871246
A65: 65 | C65: =0.2+(A65-1)*0.0869346734 -> 5.763819098 | D65: =1981.83168151597*C65/(3.8548767995521+C65) -> 1187.574638 | E65: 65 | G65: =0.2+(E65-1)*0.0869346734 -> 5.763819098 | H65: =1820.82872413489*G65/(0.676804748900211+G65) -> 1629.489258
A66: 66 | C66: 5.850753771 | D66: 1194.688908 | E66: 66 | G66: 5.850753771 | H66: 1632.037536
A67: 67 | C67: 5.937688444 | D67: 1201.676862 | E67: 67 | G67: 5.937688444 | H67: 1634.51883
A68: 68 | C68: 6.024623118 | D68: 1208.541836 | E68: 68 | G68: 6.024623118 | H68: 1636.935746
A69: 69 | C69: 6.111557791 | D69: 1215.287046 | E69: 69 | G69: 6.111557791 | H69: 1639.290758
A70: 70 | C70: 6.198492465 | D70: 1221.915601 | E70: 70 | G70: 6.198492465 | H70: 1641.586214
A71: 71 | C71: 6.285427138 | D71: 1228.4305 | E71: 71 | G71: 6.285427138 | H71: 1643.824346
A72: 72 | C72: 6.372361811 | D72: 1234.834642 | E72: 72 | G72: 6.372361811 | H72: 1646.007273
A73: 73 | C73: 6.459296485 | D73: 1241.130827 | E73: 73 | G73: 6.459296485 | H73: 1648.137014
A74: 74 | C74: 6.546231158 | D74: 1247.321762 | E74: 74 | G74: 6.546231158 | H74: 1650.215488
A75: 75 | C75: 6.633165832 | D75: 1253.410065 | E75: 75 | G75: 6.633165832 | H75: 1652.244526
A76: 76 | C76: 6.720100505 | D76: 1259.398266 | E76: 76 | G76: 6.720100505 | H76: 1654.22587
A77: 77 | C77: 6.807035178 | D77: 1265.288815 | E77: 77 | G77: 6.807035178 | H77: 1656.161182
A78: 78 | C78: 6.893969852 | D78: 1271.084081 | E78: 78 | G78: 6.893969852 | H78: 1658.052048
A79: 79 | C79: 6.980904525 | D79: 1276.786356 | E79: 79 | G79: 6.980904525 | H79: 1659.899981
A80: 80 | C80: 7.067839199 | D80: 1282.397862 | E80: 80 | G80: 7.067839199 | H80: 1661.706428
A81: 81 | C81: 7.154773872 | D81: 1287.920748 | E81: 81 | G81: 7.154773872 | H81: 1663.47277
A82: 82 | C82: 7.241708545 | D82: 1293.357098 | E82: 82 | G82: 7.241708545 | H82: 1665.200328
A83: 83 | C83: 7.328643219 | D83: 1298.70893 | E83: 83 | G83: 7.328643219 | H83: 1666.890365
A84: 84 | C84: 7.415577892 | D84: 1303.978198 | E84: 84 | G84: 7.415577892 | H84: 1668.54409
A85: 85 | C85: 7.502512566 | D85: 1309.1668 | E85: 85 | G85: 7.502512566 | H85: 1670.162662
A86: 86 | C86: 7.589447239 | D86: 1314.276574 | E86: 86 | G86: 7.589447239 | H86: 1671.74719
A87: 87 | C87: 7.676381912 | D87: 1319.309301 | E87: 87 | G87: 7.676381912 | H87: 1673.298736
A88: 88 | C88: 7.763316586 | D88: 1324.266713 | E88: 88 | G88: 7.763316586 | H88: 1674.81832
A89: 89 | C89: 7.850251259 | D89: 1329.150486 | E89: 89 | G89: 7.850251259 | H89: 1676.306919
A90: 90 | C90: 7.937185933 | D90: 1333.962251 | E90: 90 | G90: 7.937185933 | H90: 1677.765471
A91: 91 | C91: 8.024120606 | D91: 1338.703587 | E91: 91 | G91: 8.024120606 | H91: 1679.194877
A92: 92 | C92: 8.111055279 | D92: 1343.376029 | E92: 92 | G92: 8.111055279 | H92: 1680.596003
A93: 93 | C93: 8.197989953 | D93: 1347.981069 | E93: 93 | G93: 8.197989953 | H93: 1681.969678
A94: 94 | C94: 8.284924626 | D94: 1352.520155 | E94: 94 | G94: 8.284924626 | H94: 1683.316702
A95: 95 | C95: 8.3718593 | D95: 1356.994692 | E95: 95 | G95: 8.3718593 | H95: 1684.637843
A96: 96 | C96: 8.458793973 | D96: 1361.40605 | E96: 96 | G96: 8.458793973 | H96: 1685.93384
A97: 97 | C97: =0.2+(A97-1)*0.0869346734 -> 8.545728646 | D97: =1981.83168151597*C97/(3.8548767995521+C97) -> 1365.755555 | E97: 97 | G97: =0.2+(E97-1)*0.0869346734 -> 8.545728646 | H97: =1820.82872413489*G97/(0.676804748900211+G97) -> 1687.205405
A98: 98 | C98: 8.63266332 | D98: 1370.0445 | E98: 98 | G98: 8.63266332 | H98: 1688.45322
A99: 99 | C99: 8.719597993 | D99: 1374.274142 | E99: 99 | G99: 8.719597993 | H99: 1689.677946
A100: 100 | C100: 8.806532667 | D100: 1378.445701 | E100: 100 | G100: 8.806532667 | H100: 1690.880218
A101: 101 | C101: 8.89346734 | D101: 1382.560365 | E101: 101 | G101: 8.89346734 | H101: 1692.060648
A102: 102 | C102: 8.980402013 | D102: 1386.619292 | E102: 102 | G102: 8.980402013 | H102: 1693.219825
A103: 103 | C103: 9.067336687 | D103: 1390.623606 | E103: 103 | G103: 9.067336687 | H103: 1694.358318
A104: 104 | C104: 9.15427136 | D104: 1394.574401 | E104: 104 | G104: 9.15427136 | H104: 1695.476676
A105: 105 | C105: 9.241206034 | D105: 1398.472744 | E105: 105 | G105: 9.241206034 | H105: 1696.575428
A106: 106 | C106: 9.328140707 | D106: 1402.319672 | E106: 106 | G106: 9.328140707 | H106: 1697.655086
A107: 107 | C107: 9.41507538 | D107: 1406.116195 | E107: 107 | G107: 9.41507538 | H107: 1698.716143
A108: 108 | C108: 9.502010054 | D108: 1409.863299 | E108: 108 | G108: 9.502010054 | H108: 1699.759076
A109: 109 | C109: 9.588944727 | D109: 1413.561941 | E109: 109 | G109: 9.588944727 | H109: 1700.784344
A110: 110 | C110: 9.675879401 | D110: 1417.213056 | E110: 110 | G110: 9.675879401 | H110: 1701.792394
A111: 111 | C111: 9.762814074 | D111: 1420.817554 | E111: 111 | G111: 9.762814074 | H111: 1702.783655
A112: 112 | C112: 9.849748747 | D112: 1424.376321 | E112: 112 | G112: 9.849748747 | H112: 1703.758543
A113: 113 | C113: 9.936683421 | D113: 1427.890224 | E113: 113 | G113: 9.936683421 | H113: 1704.71746
A114: 114 | C114: 10.02361809 | D114: 1431.360105 | E114: 114 | G114: 10.02361809 | H114: 1705.660796
A115: 115 | C115: 10.11055277 | D115: 1434.786785 | E115: 115 | G115: 10.11055277 | H115: 1706.588928
A116: 116 | C116: 10.19748744 | D116: 1438.171068 | E116: 116 | G116: 10.19748744 | H116: 1707.502219
A117: 117 | C117: 10.28442211 | D117: 1441.513734 | E117: 117 | G117: 10.28442211 | H117: 1708.401024
A118: 118 | C118: 10.37135679 | D118: 1444.815547 | E118: 118 | G118: 10.37135679 | H118: 1709.285684
A119: 119 | C119: 10.45829146 | D119: 1448.077251 | E119: 119 | G119: 10.45829146 | H119: 1710.15653
A120: 120 | C120: 10.54522613 | D120: 1451.299573 | E120: 120 | G120: 10.54522613 | H120: 1711.013884
A121: 121 | C121: 10.63216081 | D121: 1454.483222 | E121: 121 | G121: 10.63216081 | H121: 1711.858056
A122: 122 | C122: 10.71909548 | D122: 1457.628889 | E122: 122 | G122: 10.71909548 | H122: 1712.689349
A123: 123 | C123: 10.80603015 | D123: 1460.73725 | E123: 123 | G123: 10.80603015 | H123: 1713.508055
A124: 124 | C124: 10.89296483 | D124: 1463.808966 | E124: 124 | G124: 10.89296483 | H124: 1714.314457
A125: 125 | C125: 10.9798995 | D125: 1466.84468 | E125: 125 | G125: 10.9798995 | H125: 1715.108831
A126: 126 | C126: 11.06683417 | D126: 1469.845021 | E126: 126 | G126: 11.06683417 | H126: 1715.891444
A127: 127 | C127: 11.15376885 | D127: 1472.810605 | E127: 127 | G127: 11.15376885 | H127: 1716.662555
A128: 128 | C128: 11.24070352 | D128: 1475.742031 | E128: 128 | G128: 11.24070352 | H128: 1717.422416
A129: 129 | C129: =0.2+(A129-1)*0.0869346734 -> 11.3276382 | D129: =1981.83168151597*C129/(3.8548767995521+C129) -> 1478.639887 | E129: 129 | G129: =0.2+(E129-1)*0.0869346734 -> 11.3276382 | H129: =1820.82872413489*G129/(0.676804748900211+G129) -> 1718.171272
A130: 130 | C130: 11.41457287 | D130: 1481.504745 | E130: 130 | G130: 11.41457287 | H130: 1718.909359
A131: 131 | C131: 11.50150754 | D131: 1484.337167 | E131: 131 | G131: 11.50150754 | H131: 1719.636909
A132: 132 | C132: 11.58844222 | D132: 1487.1377 | E132: 132 | G132: 11.58844222 | H132: 1720.354145
A133: 133 | C133: 11.67537689 | D133: 1489.90688 | E133: 133 | G133: 11.67537689 | H133: 1721.061285
A134: 134 | C134: 11.76231156 | D134: 1492.645229 | E134: 134 | G134: 11.76231156 | H134: 1721.758541
A135: 135 | C135: 11.84924624 | D135: 1495.353261 | E135: 135 | G135: 11.84924624 | H135: 1722.446119
A136: 136 | C136: 11.93618091 | D136: 1498.031476 | E136: 136 | G136: 11.93618091 | H136: 1723.124219
A137: 137 | C137: 12.02311558 | D137: 1500.680363 | E137: 137 | G137: 12.02311558 | H137: 1723.793035
A138: 138 | C138: 12.11005026 | D138: 1503.300402 | E138: 138 | G138: 12.11005026 | H138: 1724.452756
A139: 139 | C139: 12.19698493 | D139: 1505.892062 | E139: 139 | G139: 12.19698493 | H139: 1725.103568
A140: 140 | C140: 12.2839196 | D140: 1508.4558 | E140: 140 | G140: 12.2839196 | H140: 1725.745649
A141: 141 | C141: 12.37085428 | D141: 1510.992067 | E141: 141 | G141: 12.37085428 | H141: 1726.379174
A142: 142 | C142: 12.45778895 | D142: 1513.5013 | E142: 142 | G142: 12.45778895 | H142: 1727.004312
A143: 143 | C143: 12.54472362 | D143: 1515.983931 | E143: 143 | G143: 12.54472362 | H143: 1727.62123
A144: 144 | C144: 12.6316583 | D144: 1518.440379 | E144: 144 | G144: 12.6316583 | H144: 1728.230088
A145: 145 | C145: 12.71859297 | D145: 1520.871057 | E145: 145 | G145: 12.71859297 | H145: 1728.831043
A146: 146 | C146: 12.80552764 | D146: 1523.276369 | E146: 146 | G146: 12.80552764 | H146: 1729.424248
A147: 147 | C147: 12.89246232 | D147: 1525.656708 | E147: 147 | G147: 12.89246232 | H147: 1730.009852
A148: 148 | C148: 12.97939699 | D148: 1528.012463 | E148: 148 | G148: 12.97939699 | H148: 1730.588
A149: 149 | C149: 13.06633166 | D149: 1530.344012 | E149: 149 | G149: 13.06633166 | H149: 1731.158834
A150: 150 | C150: 13.15326634 | D150: 1532.651726 | E150: 150 | G150: 13.15326634 | H150: 1731.722492
A151: 151 | C151: 13.24020101 | D151: 1534.935969 | E151: 151 | G151: 13.24020101 | H151: 1732.279107
A152: 152 | C152: 13.32713568 | D152: 1537.197098 | E152: 152 | G152: 13.32713568 | H152: 1732.828812
A153: 153 | C153: 13.41407036 | D153: 1539.43546 | E153: 153 | G153: 13.41407036 | H153: 1733.371734
A154: 154 | C154: 13.50100503 | D154: 1541.651399 | E154: 154 | G154: 13.50100503 | H154: 1733.907998
A155: 155 | C155: 13.5879397 | D155: 1543.845249 | E155: 155 | G155: 13.5879397 | H155: 1734.437725
A156: 156 | C156: 13.67487438 | D156: 1546.01734 | E156: 156 | G156: 13.67487438 | H156: 1734.961035
A157: 157 | C157: 13.76180905 | D157: 1548.167993 | E157: 157 | G157: 13.76180905 | H157: 1735.478043
A158: 158 | C158: 13.84874372 | D158: 1550.297524 | E158: 158 | G158: 13.84874372 | H158: 1735.988862
A159: 159 | C159: 13.9356784 | D159: 1552.406243 | E159: 159 | G159: 13.9356784 | H159: 1736.493604
A160: 160 | C160: 14.02261307 | D160: 1554.494453 | E160: 160 | G160: 14.02261307 | H160: 1736.992375
A161: 161 | C161: =0.2+(A161-1)*0.0869346734 -> 14.10954774 | D161: =1981.83168151597*C161/(3.8548767995521+C161) -> 1556.562453 | E161: 161 | G161: =0.2+(E161-1)*0.0869346734 -> 14.10954774 | H161: =1820.82872413489*G161/(0.676804748900211+G161) -> 1737.485281
A162: 162 | C162: 14.19648242 | D162: 1558.610534 | E162: 162 | G162: 14.19648242 | H162: 1737.972425
A163: 163 | C163: 14.28341709 | D163: 1560.638982 | E163: 163 | G163: 14.28341709 | H163: 1738.453908
A164: 164 | C164: 14.37035176 | D164: 1562.648079 | E164: 164 | G164: 14.37035176 | H164: 1738.929827
A165: 165 | C165: 14.45728644 | D165: 1564.6381 | E165: 165 | G165: 14.45728644 | H165: 1739.400278
A166: 166 | C166: 14.54422111 | D166: 1566.609315 | E166: 166 | G166: 14.54422111 | H166: 1739.865356
A167: 167 | C167: 14.63115578 | D167: 1568.561991 | E167: 167 | G167: 14.63115578 | H167: 1740.325151
A168: 168 | C168: 14.71809046 | D168: 1570.496386 | E168: 168 | G168: 14.71809046 | H168: 1740.779753
A169: 169 | C169: 14.80502513 | D169: 1572.412758 | E169: 169 | G169: 14.80502513 | H169: 1741.229249
A170: 170 | C170: 14.8919598 | D170: 1574.311355 | E170: 170 | G170: 14.8919598 | H170: 1741.673726
A171: 171 | C171: 14.97889448 | D171: 1576.192425 | E171: 171 | G171: 14.97889448 | H171: 1742.113267
A172: 172 | C172: 15.06582915 | D172: 1578.05621 | E172: 172 | G172: 15.06582915 | H172: 1742.547953
A173: 173 | C173: 15.15276382 | D173: 1579.902946 | E173: 173 | G173: 15.15276382 | H173: 1742.977864
A174: 174 | C174: 15.2396985 | D174: 1581.732865 | E174: 174 | G174: 15.2396985 | H174: 1743.403079
A175: 175 | C175: 15.32663317 | D175: 1583.546198 | E175: 175 | G175: 15.32663317 | H175: 1743.823675
A176: 176 | C176: 15.41356784 | D176: 1585.343168 | E176: 176 | G176: 15.41356784 | H176: 1744.239725
A177: 177 | C177: 15.50050252 | D177: 1587.123996 | E177: 177 | G177: 15.50050252 | H177: 1744.651304
A178: 178 | C178: 15.58743719 | D178: 1588.888898 | E178: 178 | G178: 15.58743719 | H178: 1745.058483
A179: 179 | C179: 15.67437187 | D179: 1590.638088 | E179: 179 | G179: 15.67437187 | H179: 1745.461333
A180: 180 | C180: 15.76130654 | D180: 1592.371773 | E180: 180 | G180: 15.76130654 | H180: 1745.859921
A181: 181 | C181: 15.84824121 | D181: 1594.090159 | E181: 181 | G181: 15.84824121 | H181: 1746.254316
A182: 182 | C182: 15.93517589 | D182: 1595.793449 | E182: 182 | G182: 15.93517589 | H182: 1746.644582
A183: 183 | C183: 16.02211056 | D183: 1597.481839 | E183: 183 | G183: 16.02211056 | H183: 1747.030785
A184: 184 | C184: 16.10904523 | D184: 1599.155524 | E184: 184 | G184: 16.10904523 | H184: 1747.412988
A185: 185 | C185: 16.19597991 | D185: 1600.814696 | E185: 185 | G185: 16.19597991 | H185: 1747.791253
A186: 186 | C186: 16.28291458 | D186: 1602.459544 | E186: 186 | G186: 16.28291458 | H186: 1748.165639
A187: 187 | C187: 16.36984925 | D187: 1604.09025 | E187: 187 | G187: 16.36984925 | H187: 1748.536207
A188: 188 | C188: 16.45678393 | D188: 1605.706998 | E188: 188 | G188: 16.45678393 | H188: 1748.903014
A189: 189 | C189: 16.5437186 | D189: 1607.309965 | E189: 189 | G189: 16.5437186 | H189: 1749.266118
A190: 190 | C190: 16.63065327 | D190: 1608.899327 | E190: 190 | G190: 16.63065327 | H190: 1749.625574
A191: 191 | C191: 16.71758795 | D191: 1610.475256 | E191: 191 | G191: 16.71758795 | H191: 1749.981437
A192: 192 | C192: 16.80452262 | D192: 1612.037923 | E192: 192 | G192: 16.80452262 | H192: 1750.333761
A193: 193 | C193: =0.2+(A193-1)*0.0869346734 -> 16.89145729 | D193: =1981.83168151597*C193/(3.8548767995521+C193) -> 1613.587493 | E193: 193 | G193: =0.2+(E193-1)*0.0869346734 -> 16.89145729 | H193: =1820.82872413489*G193/(0.676804748900211+G193) -> 1750.682598
A194: 194 | C194: 16.97839197 | D194: 1615.12413 | E194: 194 | G194: 16.97839197 | H194: 1751.027999
A195: 195 | C195: 17.06532664 | D195: 1616.647997 | E195: 195 | G195: 17.06532664 | H195: 1751.370016
A196: 196 | C196: 17.15226131 | D196: 1618.159251 | E196: 196 | G196: 17.15226131 | H196: 1751.708697
A197: 197 | C197: 17.23919599 | D197: 1619.658049 | E197: 197 | G197: 17.23919599 | H197: 1752.044092
A198: 198 | C198: 17.32613066 | D198: 1621.144543 | E198: 198 | G198: 17.32613066 | H198: 1752.376247
A199: 199 | C199: 17.41306533 | D199: 1622.618885 | E199: 199 | G199: 17.41306533 | H199: 1752.70521
A200: 200 | C200: 17.50000001 | D200: 1624.081223 | E200: 200 | G200: 17.50000001 | H200: 1753.031026

Sheet Régression non linéaire
B1: XLSTAT 2022.2.1.12345 - Régression non linéaire - Début : 27/04/2022 à 17:55:20 / Fin : 27/04/2022 à 17:55:22 / Microsoft Excel 15.05441
B2: Y / Variables dépendantes : Classeur = demoNLI_fr.xlsm / Feuille = Données / Plage = 'Données'!$B:$B / 20 lignes et 1 colonne
B3: X / Quantitatives : Classeur = demoNLI_fr.xlsm / Feuille = Données / Plage = 'Données'!$A:$A / 20 lignes et 1 colonne
B4: Groupes : Classeur = demoNLI_fr.xlsm / Feuille = Données / Plage = 'Données'!$C:$C / 20 lignes et 1 colonne
B5: Conditions d'arrêt : Itérations : 200 Convergence : 0,00001
B6: Cinétique enzymatique : Michaelis-Menten = pr1*X1/(pr2+X1)
B11: Statistiques descriptives :
B13: Variable | C13: Observations | D13: Obs. avec données manquantes | E13: Obs. sans données manquantes | F13: Minimum | G13: Maximum | H13: Moyenne | I13: Ecart-type
B14: Vitesse | C14: 20 | D14: 0 | E14: 20 | F14: 211 | G14: 1804 | H14: 1370.2 | I14: 446.2790725
B15: Conc | C15: 20 | D15: 0 | E15: 20 | F15: 0.2 | G15: 17.5 | H15: 8.76 | I15: 5.698974977
B18: Régression non linéaire de la variable Vitesse
B20: Coefficients d'ajustement :
B22: Statistique | C22: Complet
B23: Observations | C23: 20
B24: DDL | C24: 18
B25: SCE | C25: 88426.16788
B26: MCE | C26: 4912.564882
B27: RMCE | C27: 70.0896917
B28: AIC | C28: 173.883819
B29: AICC | C29: 174.883819
B30: Itérations | C30: 9
B33: Paramètres du modèle :
B35: Paramètres | C35: Valeur(a) | D35: Erreur standard(a) | E35: Borne inférieure (95%) | F35: Borne supérieure (95%) | G35: Valeur(b) | H35: Erreur standard(b) | I35: Borne inférieure (95%) | J35: Borne supérieure (95%)
B36: pr1 | C36: 1855.130446 | D36: 37.03746939 | E36: 1779.509963 | F36: 1930.75093 | G36: 1855.130446 | H36: 37.03746939 | I36: 1779.509963 | J36: 1930.75093
B37: pr2 | C37: 3.11653695 | D37: 0.2973239116 | E37: 2.50948203 | F37: 3.723591869 | G37: 0.7727754459 | H37: 0.1278585682 | I37: 0.5117228705 | J37: 1.033828021
B40: Equation du modèle :
B42: Vitesse(a) = 1855,13*Conc/(3,11654+Conc)
B44: Vitesse(b) = 1855,13*Conc/(0,772775+Conc)
B47: Prédictions et résidus :
B49: Observations | C49: Conc | D49: Vitesse | E49: Préd(Vitesse) | F49: Résidus
B50: Obs1(a) | C50: 0.2 | D50: 211 | E50: 111.871538 | F50: 99.12846204
B51: Obs2(a) | C51: 2.1 | D51: 692 | E51: 746.8122961 | F51: -54.81229611
B52: Obs3(a) | C52: 3.8 | D52: 946 | E52: 1019.223312 | F52: -73.22331176
B53: Obs4(a) | C53: 5.5 | D53: 1178 | E53: 1184.143643 | F53: -6.143643084
B54: Obs5(a) | C54: 7.6 | D54: 1321 | E54: 1315.629429 | F54: 5.370570675
B55: Obs6(a) | C55: 9.8 | D55: 1432 | E55: 1407.519558 | F55: 24.4804424
B56: Obs7(a) | C56: 12.4 | D56: 1504 | E56: 1482.522654 | F56: 21.4773464
B57: Obs8(a) | C57: 13.6 | D57: 1546 | E57: 1509.27038 | F57: 36.72962033
B58: Obs9(a) | C58: 15.1 | D58: 1584 | E58: 1537.749453 | F58: 46.25054655
B59: Obs10(a) | C59: 17.5 | D59: 1621 | E59: 1574.69622 | F59: 46.30377976
B60: Obs11(b) | C60: 0.2 | D60: 562 | E60: 381.409801 | F60: 180.590199
B61: Obs12(b) | C61: 2.1 | D61: 1201 | E61: 1356.101098 | F61: -155.1010982
B62: Obs13(b) | C62: 3.8 | D62: 1588 | E62: 1541.622977 | F62: 46.37702308
B63: Obs14(b) | C63: 5.5 | D63: 1613 | E63: 1626.587392 | F63: -13.58739218
B64: Obs15(b) | C64: 7.6 | D64: 1661 | E64: 1683.908936 | F64: -22.90893586
B65: Obs16(b) | C65: 9.8 | D65: 1685 | E65: 1719.536981 | F65: -34.53698119
B66: Obs17(b) | C66: 12.4 | D66: 1710 | E66: 1746.299983 | F66: -36.2999827
B67: Obs18(b) | C67: 13.6 | D67: 1754 | E67: 1755.386367 | F67: -1.386366653
B68: Obs19(b) | C68: 15.1 | D68: 1791 | E68: 1764.812325 | F68: 26.18767505
B69: Obs20(b) | C69: 17.5 | D69: 1804 | E69: 1776.674972 | F69: 27.32502771

Sheet XLSTAT_20220427_175518_1_HID (hidden)
A1: 1 | C1: =0.2+(A1-1)*0.0869346734 -> 0.2 | D1: =1855.13044622572*C1/(3.11653694957686+C1) -> 111.871538 | E1: 1 | G1: =0.2+(E1-1)*0.0869346734 -> 0.2 | H1: =1855.13044622572*G1/(0.772775445887083+G1) -> 381.409801
A2: 2 | C2: 0.2869346734 | D2: 156.3994967 | E2: 2 | G2: 0.2869346734 | H2: 502.3083568
A3: 3 | C3: 0.3738693468 | D3: 198.709362 | E3: 3 | G3: 0.3738693468 | H3: 604.8746853
A4: 4 | C4: 0.4608040202 | D4: 238.9628427 | E4: 4 | G4: 0.4608040202 | H4: 692.9845957
A5: 5 | C5: 0.5477386936 | D5: 277.3063017 | E5: 5 | G5: 0.5477386936 | H5: 769.4932577
A6: 6 | C6: 0.634673367 | D6: 313.8725337 | E6: 6 | G6: 0.634673367 | H6: 836.5504136
A7: 7 | C7: 0.7216080404 | D7: 348.7823023 | E7: 7 | G7: 0.7216080404 | H7: 895.8055668
A8: 8 | C8: 0.8085427138 | D8: 382.145672 | E8: 8 | G8: 0.8085427138 | H8: 948.545488
A9: 9 | C9: 0.8954773872 | D9: 414.0631676 | E9: 9 | G9: 0.8954773872 | H9: 995.788727
A10: 10 | C10: 0.9824120606 | D10: 444.626786 | E10: 10 | G10: 0.9824120606 | H10: 1038.352038
A11: 11 | C11: 1.069346734 | D11: 473.9208812 | E11: 11 | G11: 1.069346734 | H11: 1076.897996
A12: 12 | C12: 1.156281407 | D12: 502.0229423 | E12: 12 | G12: 1.156281407 | H12: 1111.969738
A13: 13 | C13: 1.243216081 | D13: 529.0042777 | E13: 13 | G13: 1.243216081 | H13: 1144.016714
A14: 14 | C14: 1.330150754 | D14: 554.9306195 | E14: 14 | G14: 1.330150754 | H14: 1173.414056
A15: 15 | C15: 1.417085428 | D15: 579.8626579 | E15: 15 | G15: 1.417085428 | H15: 1200.477324
A16: 16 | C16: 1.504020101 | D16: 603.8565157 | E16: 16 | G16: 1.504020101 | H16: 1225.473884
A17: 17 | C17: 1.590954774 | D17: 626.9641698 | E17: 17 | G17: 1.590954774 | H17: 1248.631767
A18: 18 | C18: 1.677889448 | D18: 649.2338274 | E18: 18 | G18: 1.677889448 | H18: 1270.146648
A19: 19 | C19: 1.764824121 | D19: 670.7102613 | E19: 19 | G19: 1.764824121 | H19: 1290.187389
A20: 20 | C20: 1.851758795 | D20: 691.4351109 | E20: 20 | G20: 1.851758795 | H20: 1308.900477
A21: 21 | C21: 1.938693468 | D21: 711.447151 | E21: 21 | G21: 1.938693468 | H21: 1326.413613
A22: 22 | C22: 2.025628141 | D22: 730.7825345 | E22: 22 | G22: 2.025628141 | H22: 1342.838629
A23: 23 | C23: 2.112562815 | D23: 749.4750098 | E23: 23 | G23: 2.112562815 | H23: 1358.273881
A24: 24 | C24: 2.199497488 | D24: 767.5561181 | E24: 24 | G24: 2.199497488 | H24: 1372.806215
A25: 25 | C25: 2.286432162 | D25: 785.0553703 | E25: 25 | G25: 2.286432162 | H25: 1386.512607
A26: 26 | C26: 2.373366835 | D26: 802.0004081 | E26: 26 | G26: 2.373366835 | H26: 1399.461525
A27: 27 | C27: 2.460301508 | D27: 818.4171497 | E27: 27 | G27: 2.460301508 | H27: 1411.714073
A28: 28 | C28: 2.547236182 | D28: 834.3299219 | E28: 28 | G28: 2.547236182 | H28: 1423.324953
A29: 29 | C29: 2.634170855 | D29: 849.7615806 | E29: 29 | G29: 2.634170855 | H29: 1434.343286
A30: 30 | C30: 2.721105529 | D30: 864.7336202 | E30: 30 | G30: 2.721105529 | H30: 1444.813304
A31: 31 | C31: 2.808040202 | D31: 879.2662733 | E31: 31 | G31: 2.808040202 | H31: 1454.774941
A32: 32 | C32: 2.894974875 | D32: 893.3786024 | E32: 32 | G32: 2.894974875 | H32: 1464.264348
A33: 33 | C33: =0.2+(A33-1)*0.0869346734 -> 2.981909549 | D33: =1855.13044622572*C33/(3.11653694957686+C33) -> 907.0885829 | E33: 33 | G33: =0.2+(E33-1)*0.0869346734 -> 2.981909549 | H33: =1855.13044622572*G33/(0.772775445887083+G33) -> 1473.314326
A34: 34 | C34: 3.068844222 | D34: 920.4131796 | E34: 34 | G34: 3.068844222 | H34: 1481.954707
A35: 35 | C35: 3.155778896 | D35: 933.3684169 | E35: 35 | G35: 3.155778896 | H35: 1490.212684
A36: 36 | C36: 3.242713569 | D36: 945.9694429 | E36: 36 | G36: 3.242713569 | H36: 1498.113094
A37: 37 | C37: 3.329648242 | D37: 958.2305884 | E37: 37 | G37: 3.329648242 | H37: 1505.678667
A38: 38 | C38: 3.416582916 | D38: 970.1654217 | E38: 38 | G38: 3.416582916 | H38: 1512.930249
A39: 39 | C39: 3.503517589 | D39: 981.7867981 | E39: 39 | G39: 3.503517589 | H39: 1519.88699
A40: 40 | C40: 3.590452263 | D40: 993.1069064 | E40: 40 | G40: 3.590452263 | H40: 1526.566513
A41: 41 | C41: 3.677386936 | D41: 1004.137312 | E41: 41 | G41: 3.677386936 | H41: 1532.985065
A42: 42 | C42: 3.764321609 | D42: 1014.888995 | E42: 42 | G42: 3.764321609 | H42: 1539.157647
A43: 43 | C43: 3.851256283 | D43: 1025.372388 | E43: 43 | G43: 3.851256283 | H43: 1545.098132
A44: 44 | C44: 3.938190956 | D44: 1035.59741 | E44: 44 | G44: 3.938190956 | H44: 1550.81937
A45: 45 | C45: 4.02512563 | D45: 1045.573495 | E45: 45 | G45: 4.02512563 | H45: 1556.333277
A46: 46 | C46: 4.112060303 | D46: 1055.309626 | E46: 46 | G46: 4.112060303 | H46: 1561.650925
A47: 47 | C47: 4.198994976 | D47: 1064.814357 | E47: 47 | G47: 4.198994976 | H47: 1566.782607
A48: 48 | C48: 4.28592965 | D48: 1074.09584 | E48: 48 | G48: 4.28592965 | H48: 1571.737912
A49: 49 | C49: 4.372864323 | D49: 1083.161851 | E49: 49 | G49: 4.372864323 | H49: 1576.525779
A50: 50 | C50: 4.459798997 | D50: 1092.019805 | E50: 50 | G50: 4.459798997 | H50: 1581.154553
A51: 51 | C51: 4.54673367 | D51: 1100.676784 | E51: 51 | G51: 4.54673367 | H51: 1585.632035
A52: 52 | C52: 4.633668343 | D52: 1109.139551 | E52: 52 | G52: 4.633668343 | H52: 1589.965522
A53: 53 | C53: 4.720603017 | D53: 1117.414569 | E53: 53 | G53: 4.720603017 | H53: 1594.161851
A54: 54 | C54: 4.80753769 | D54: 1125.508018 | E54: 54 | G54: 4.80753769 | H54: 1598.227433
A55: 55 | C55: 4.894472364 | D55: 1133.425808 | E55: 55 | G55: 4.894472364 | H55: 1602.168284
A56: 56 | C56: 4.981407037 | D56: 1141.173596 | E56: 56 | G56: 4.981407037 | H56: 1605.990058
A57: 57 | C57: 5.06834171 | D57: 1148.7568 | E57: 57 | G57: 5.06834171 | H57: 1609.698071
A58: 58 | C58: 5.155276384 | D58: 1156.180609 | E58: 58 | G58: 5.155276384 | H58: 1613.297328
A59: 59 | C59: 5.242211057 | D59: 1163.449996 | E59: 59 | G59: 5.242211057 | H59: 1616.792545
A60: 60 | C60: 5.329145731 | D60: 1170.56973 | E60: 60 | G60: 5.329145731 | H60: 1620.188169
A61: 61 | C61: 5.416080404 | D61: 1177.544385 | E61: 61 | G61: 5.416080404 | H61: 1623.488396
A62: 62 | C62: 5.503015077 | D62: 1184.378351 | E62: 62 | G62: 5.503015077 | H62: 1626.697191
A63: 63 | C63: 5.589949751 | D63: 1191.075842 | E63: 63 | G63: 5.589949751 | H63: 1629.818302
A64: 64 | C64: 5.676884424 | D64: 1197.640905 | E64: 64 | G64: 5.676884424 | H64: 1632.855274
A65: 65 | C65: =0.2+(A65-1)*0.0869346734 -> 5.763819098 | D65: =1855.13044622572*C65/(3.11653694957686+C65) -> 1204.077431 | E65: 65 | G65: =0.2+(E65-1)*0.0869346734 -> 5.763819098 | H65: =1855.13044622572*G65/(0.772775445887083+G65) -> 1635.811465
A66: 66 | C66: 5.850753771 | D66: 1210.389157 | E66: 66 | G66: 5.850753771 | H66: 1638.690055
A67: 67 | C67: 5.937688444 | D67: 1216.579678 | E67: 67 | G67: 5.937688444 | H67: 1641.49406
A68: 68 | C68: 6.024623118 | D68: 1222.652452 | E68: 68 | G68: 6.024623118 | H68: 1644.226342
A69: 69 | C69: 6.111557791 | D69: 1228.610808 | E69: 69 | G69: 6.111557791 | H69: 1646.889618
A70: 70 | C70: 6.198492465 | D70: 1234.457948 | E70: 70 | G70: 6.198492465 | H70: 1649.486469
A71: 71 | C71: 6.285427138 | D71: 1240.196957 | E71: 71 | G71: 6.285427138 | H71: 1652.019351
A72: 72 | C72: 6.372361811 | D72: 1245.830808 | E72: 72 | G72: 6.372361811 | H72: 1654.490598
A73: 73 | C73: 6.459296485 | D73: 1251.362365 | E73: 73 | G73: 6.459296485 | H73: 1656.902432
A74: 74 | C74: 6.546231158 | D74: 1256.794388 | E74: 74 | G74: 6.546231158 | H74: 1659.256971
A75: 75 | C75: 6.633165832 | D75: 1262.12954 | E75: 75 | G75: 6.633165832 | H75: 1661.556233
A76: 76 | C76: 6.720100505 | D76: 1267.37039 | E76: 76 | G76: 6.720100505 | H76: 1663.802141
A77: 77 | C77: 6.807035178 | D77: 1272.519416 | E77: 77 | G77: 6.807035178 | H77: 1665.996531
A78: 78 | C78: 6.893969852 | D78: 1277.57901 | E78: 78 | G78: 6.893969852 | H78: 1668.141156
A79: 79 | C79: 6.980904525 | D79: 1282.551482 | E79: 79 | G79: 6.980904525 | H79: 1670.23769
A80: 80 | C80: 7.067839199 | D80: 1287.439063 | E80: 80 | G80: 7.067839199 | H80: 1672.287733
A81: 81 | C81: 7.154773872 | D81: 1292.243909 | E81: 81 | G81: 7.154773872 | H81: 1674.292813
A82: 82 | C82: 7.241708545 | D82: 1296.968103 | E82: 82 | G82: 7.241708545 | H82: 1676.254394
A83: 83 | C83: 7.328643219 | D83: 1301.613658 | E83: 83 | G83: 7.328643219 | H83: 1678.173876
A84: 84 | C84: 7.415577892 | D84: 1306.182522 | E84: 84 | G84: 7.415577892 | H84: 1680.052601
A85: 85 | C85: 7.502512566 | D85: 1310.676578 | E85: 85 | G85: 7.502512566 | H85: 1681.891853
A86: 86 | C86: 7.589447239 | D86: 1315.09765 | E86: 86 | G86: 7.589447239 | H86: 1683.692862
A87: 87 | C87: 7.676381912 | D87: 1319.447499 | E87: 87 | G87: 7.676381912 | H87: 1685.456809
A88: 88 | C88: 7.763316586 | D88: 1323.727835 | E88: 88 | G88: 7.763316586 | H88: 1687.184828
A89: 89 | C89: 7.850251259 | D89: 1327.940309 | E89: 89 | G89: 7.850251259 | H89: 1688.878003
A90: 90 | C90: 7.937185933 | D90: 1332.086523 | E90: 90 | G90: 7.937185933 | H90: 1690.537379
A91: 91 | C91: 8.024120606 | D91: 1336.168028 | E91: 91 | G91: 8.024120606 | H91: 1692.163958
A92: 92 | C92: 8.111055279 | D92: 1340.186328 | E92: 92 | G92: 8.111055279 | H92: 1693.758702
A93: 93 | C93: 8.197989953 | D93: 1344.142878 | E93: 93 | G93: 8.197989953 | H93: 1695.322538
A94: 94 | C94: 8.284924626 | D94: 1348.039093 | E94: 94 | G94: 8.284924626 | H94: 1696.856354
A95: 95 | C95: 8.3718593 | D95: 1351.87634 | E95: 95 | G95: 8.3718593 | H95: 1698.361007
A96: 96 | C96: 8.458793973 | D96: 1355.65595 | E96: 96 | G96: 8.458793973 | H96: 1699.837322
A97: 97 | C97: =0.2+(A97-1)*0.0869346734 -> 8.545728646 | D97: =1855.13044622572*C97/(3.11653694957686+C97) -> 1359.37921 | E97: 97 | G97: =0.2+(E97-1)*0.0869346734 -> 8.545728646 | H97: =1855.13044622572*G97/(0.772775445887083+G97) -> 1701.286091
A98: 98 | C98: 8.63266332 | D98: 1363.047373 | E98: 98 | G98: 8.63266332 | H98: 1702.708077
A99: 99 | C99: 8.719597993 | D99: 1366.66165 | E99: 99 | G99: 8.719597993 | H99: 1704.104018
A100: 100 | C100: 8.806532667 | D100: 1370.223223 | E100: 100 | G100: 8.806532667 | H100: 1705.474621
A101: 101 | C101: 8.89346734 | D101: 1373.733234 | E101: 101 | G101: 8.89346734 | H101: 1706.820571
A102: 102 | C102: 8.980402013 | D102: 1377.192796 | E102: 102 | G102: 8.980402013 | H102: 1708.142527
A103: 103 | C103: 9.067336687 | D103: 1380.602988 | E103: 103 | G103: 9.067336687 | H103: 1709.441125
A104: 104 | C104: 9.15427136 | D104: 1383.964861 | E104: 104 | G104: 9.15427136 | H104: 1710.716978
A105: 105 | C105: 9.241206034 | D105: 1387.279433 | E105: 105 | G105: 9.241206034 | H105: 1711.970679
A106: 106 | C106: 9.328140707 | D106: 1390.547695 | E106: 106 | G106: 9.328140707 | H106: 1713.2028
A107: 107 | C107: 9.41507538 | D107: 1393.770612 | E107: 107 | G107: 9.41507538 | H107: 1714.413893
A108: 108 | C108: 9.502010054 | D108: 1396.949122 | E108: 108 | G108: 9.502010054 | H108: 1715.604491
A109: 109 | C109: 9.588944727 | D109: 1400.084134 | E109: 109 | G109: 9.588944727 | H109: 1716.775112
A110: 110 | C110: 9.675879401 | D110: 1403.176537 | E110: 110 | G110: 9.675879401 | H110: 1717.926253
A111: 111 | C111: 9.762814074 | D111: 1406.227192 | E111: 111 | G111: 9.762814074 | H111: 1719.058397
A112: 112 | C112: 9.849748747 | D112: 1409.236941 | E112: 112 | G112: 9.849748747 | H112: 1720.17201
A113: 113 | C113: 9.936683421 | D113: 1412.206599 | E113: 113 | G113: 9.936683421 | H113: 1721.267543
A114: 114 | C114: 10.02361809 | D114: 1415.136963 | E114: 114 | G114: 10.02361809 | H114: 1722.345433
A115: 115 | C115: 10.11055277 | D115: 1418.028808 | E115: 115 | G115: 10.11055277 | H115: 1723.406103
A116: 116 | C116: 10.19748744 | D116: 1420.882888 | E116: 116 | G116: 10.19748744 | H116: 1724.449963
A117: 117 | C117: 10.28442211 | D117: 1423.699938 | E117: 117 | G117: 10.28442211 | H117: 1725.477408
A118: 118 | C118: 10.37135679 | D118: 1426.480674 | E118: 118 | G118: 10.37135679 | H118: 1726.488823
A119: 119 | C119: 10.45829146 | D119: 1429.225793 | E119: 119 | G119: 10.45829146 | H119: 1727.484581
A120: 120 | C120: 10.54522613 | D120: 1431.935977 | E120: 120 | G120: 10.54522613 | H120: 1728.465041
A121: 121 | C121: 10.63216081 | D121: 1434.611886 | E121: 121 | G121: 10.63216081 | H121: 1729.430554
A122: 122 | C122: 10.71909548 | D122: 1437.254168 | E122: 122 | G122: 10.71909548 | H122: 1730.381459
A123: 123 | C123: 10.80603015 | D123: 1439.863453 | E123: 123 | G123: 10.80603015 | H123: 1731.318085
A124: 124 | C124: 10.89296483 | D124: 1442.440354 | E124: 124 | G124: 10.89296483 | H124: 1732.240752
A125: 125 | C125: 10.9798995 | D125: 1444.985471 | E125: 125 | G125: 10.9798995 | H125: 1733.149768
A126: 126 | C126: 11.06683417 | D126: 1447.499388 | E126: 126 | G126: 11.06683417 | H126: 1734.045436
A127: 127 | C127: 11.15376885 | D127: 1449.982675 | E127: 127 | G127: 11.15376885 | H127: 1734.928045
A128: 128 | C128: 11.24070352 | D128: 1452.43589 | E128: 128 | G128: 11.24070352 | H128: 1735.797881
A129: 129 | C129: =0.2+(A129-1)*0.0869346734 -> 11.3276382 | D129: =1855.13044622572*C129/(3.11653694957686+C129) -> 1454.859574 | E129: 129 | G129: =0.2+(E129-1)*0.0869346734 -> 11.3276382 | H129: =1855.13044622572*G129/(0.772775445887083+G129) -> 1736.655219
A130: 130 | C130: 11.41457287 | D130: 1457.254258 | E130: 130 | G130: 11.41457287 | H130: 1737.500325
A131: 131 | C131: 11.50150754 | D131: 1459.62046 | E131: 131 | G131: 11.50150754 | H131: 1738.33346
A132: 132 | C132: 11.58844222 | D132: 1461.958683 | E132: 132 | G132: 11.58844222 | H132: 1739.154877
A133: 133 | C133: 11.67537689 | D133: 1464.269423 | E133: 133 | G133: 11.67537689 | H133: 1739.96482
A134: 134 | C134: 11.76231156 | D134: 1466.55316 | E134: 134 | G134: 11.76231156 | H134: 1740.763529
A135: 135 | C135: 11.84924624 | D135: 1468.810365 | E135: 135 | G135: 11.84924624 | H135: 1741.551236
A136: 136 | C136: 11.93618091 | D136: 1471.041497 | E136: 136 | G136: 11.93618091 | H136: 1742.328166
A137: 137 | C137: 12.02311558 | D137: 1473.247007 | E137: 137 | G137: 12.02311558 | H137: 1743.094539
A138: 138 | C138: 12.11005026 | D138: 1475.427332 | E138: 138 | G138: 12.11005026 | H138: 1743.850569
A139: 139 | C139: 12.19698493 | D139: 1477.582902 | E139: 139 | G139: 12.19698493 | H139: 1744.596464
A140: 140 | C140: 12.2839196 | D140: 1479.714136 | E140: 140 | G140: 12.2839196 | H140: 1745.332427
A141: 141 | C141: 12.37085428 | D141: 1481.821443 | E141: 141 | G141: 12.37085428 | H141: 1746.058653
A142: 142 | C142: 12.45778895 | D142: 1483.905225 | E142: 142 | G142: 12.45778895 | H142: 1746.775336
A143: 143 | C143: 12.54472362 | D143: 1485.965873 | E143: 143 | G143: 12.54472362 | H143: 1747.482663
A144: 144 | C144: 12.6316583 | D144: 1488.00377 | E144: 144 | G144: 12.6316583 | H144: 1748.180814
A145: 145 | C145: 12.71859297 | D145: 1490.019291 | E145: 145 | G145: 12.71859297 | H145: 1748.869968
A146: 146 | C146: 12.80552764 | D146: 1492.012802 | E146: 146 | G146: 12.80552764 | H146: 1749.550298
A147: 147 | C147: 12.89246232 | D147: 1493.984663 | E147: 147 | G147: 12.89246232 | H147: 1750.221971
A148: 148 | C148: 12.97939699 | D148: 1495.935223 | E148: 148 | G148: 12.97939699 | H148: 1750.885152
A149: 149 | C149: 13.06633166 | D149: 1497.864827 | E149: 149 | G149: 13.06633166 | H149: 1751.540002
A150: 150 | C150: 13.15326634 | D150: 1499.773809 | E150: 150 | G150: 13.15326634 | H150: 1752.186675
A151: 151 | C151: 13.24020101 | D151: 1501.662499 | E151: 151 | G151: 13.24020101 | H151: 1752.825325
A152: 152 | C152: 13.32713568 | D152: 1503.53122 | E152: 152 | G152: 13.32713568 | H152: 1753.456099
A153: 153 | C153: 13.41407036 | D153: 1505.380284 | E153: 153 | G153: 13.41407036 | H153: 1754.079143
A154: 154 | C154: 13.50100503 | D154: 1507.210002 | E154: 154 | G154: 13.50100503 | H154: 1754.694597
A155: 155 | C155: 13.5879397 | D155: 1509.020676 | E155: 155 | G155: 13.5879397 | H155: 1755.3026
A156: 156 | C156: 13.67487438 | D156: 1510.8126 | E156: 156 | G156: 13.67487438 | H156: 1755.903286
A157: 157 | C157: 13.76180905 | D157: 1512.586065 | E157: 157 | G157: 13.76180905 | H157: 1756.496787
A158: 158 | C158: 13.84874372 | D158: 1514.341355 | E158: 158 | G158: 13.84874372 | H158: 1757.08323
A159: 159 | C159: 13.9356784 | D159: 1516.078747 | E159: 159 | G159: 13.9356784 | H159: 1757.66274
A160: 160 | C160: 14.02261307 | D160: 1517.798515 | E160: 160 | G160: 14.02261307 | H160: 1758.23544
A161: 161 | C161: =0.2+(A161-1)*0.0869346734 -> 14.10954774 | D161: =1855.13044622572*C161/(3.11653694957686+C161) -> 1519.500924 | E161: 161 | G161: =0.2+(E161-1)*0.0869346734 -> 14.10954774 | H161: =1855.13044622572*G161/(0.772775445887083+G161) -> 1758.80145
A162: 162 | C162: 14.19648242 | D162: 1521.186236 | E162: 162 | G162: 14.19648242 | H162: 1759.360885
A163: 163 | C163: 14.28341709 | D163: 1522.854708 | E163: 163 | G163: 14.28341709 | H163: 1759.91386
A164: 164 | C164: 14.37035176 | D164: 1524.50659 | E164: 164 | G164: 14.37035176 | H164: 1760.460486
A165: 165 | C165: 14.45728644 | D165: 1526.142129 | E165: 165 | G165: 14.45728644 | H165: 1761.000871
A166: 166 | C166: 14.54422111 | D166: 1527.761566 | E166: 166 | G166: 14.54422111 | H166: 1761.535122
A167: 167 | C167: 14.63115578 | D167: 1529.365139 | E167: 167 | G167: 14.63115578 | H167: 1762.063343
A168: 168 | C168: 14.71809046 | D168: 1530.953078 | E168: 168 | G168: 14.71809046 | H168: 1762.585635
A169: 169 | C169: 14.80502513 | D169: 1532.525611 | E169: 169 | G169: 14.80502513 | H169: 1763.102098
A170: 170 | C170: 14.8919598 | D170: 1534.082962 | E170: 170 | G170: 14.8919598 | H170: 1763.612828
A171: 171 | C171: 14.97889448 | D171: 1535.625349 | E171: 171 | G171: 14.97889448 | H171: 1764.117921
A172: 172 | C172: 15.06582915 | D172: 1537.152987 | E172: 172 | G172: 15.06582915 | H172: 1764.617469
A173: 173 | C173: 15.15276382 | D173: 1538.666086 | E173: 173 | G173: 15.15276382 | H173: 1765.111563
A174: 174 | C174: 15.2396985 | D174: 1540.164853 | E174: 174 | G174: 15.2396985 | H174: 1765.600292
A175: 175 | C175: 15.32663317 | D175: 1541.649491 | E175: 175 | G175: 15.32663317 | H175: 1766.083743
A176: 176 | C176: 15.41356784 | D176: 1543.120199 | E176: 176 | G176: 15.41356784 | H176: 1766.562001
A177: 177 | C177: 15.50050252 | D177: 1544.577171 | E177: 177 | G177: 15.50050252 | H177: 1767.035149
A178: 178 | C178: 15.58743719 | D178: 1546.020599 | E178: 178 | G178: 15.58743719 | H178: 1767.503269
A179: 179 | C179: 15.67437187 | D179: 1547.450672 | E179: 179 | G179: 15.67437187 | H179: 1767.96644
A180: 180 | C180: 15.76130654 | D180: 1548.867573 | E180: 180 | G180: 15.76130654 | H180: 1768.42474
A181: 181 | C181: 15.84824121 | D181: 1550.271484 | E181: 181 | G181: 15.84824121 | H181: 1768.878246
A182: 182 | C182: 15.93517589 | D182: 1551.662583 | E182: 182 | G182: 15.93517589 | H182: 1769.327033
A183: 183 | C183: 16.02211056 | D183: 1553.041044 | E183: 183 | G183: 16.02211056 | H183: 1769.771173
A184: 184 | C184: 16.10904523 | D184: 1554.407039 | E184: 184 | G184: 16.10904523 | H184: 1770.21074
A185: 185 | C185: 16.19597991 | D185: 1555.760736 | E185: 185 | G185: 16.19597991 | H185: 1770.645802
A186: 186 | C186: 16.28291458 | D186: 1557.1023 | E186: 186 | G186: 16.28291458 | H186: 1771.076429
A187: 187 | C187: 16.36984925 | D187: 1558.431894 | E187: 187 | G187: 16.36984925 | H187: 1771.502689
A188: 188 | C188: 16.45678393 | D188: 1559.749677 | E188: 188 | G188: 16.45678393 | H188: 1771.924647
A189: 189 | C189: 16.5437186 | D189: 1561.055806 | E189: 189 | G189: 16.5437186 | H189: 1772.342368
A190: 190 | C190: 16.63065327 | D190: 1562.350435 | E190: 190 | G190: 16.63065327 | H190: 1772.755916
A191: 191 | C191: 16.71758795 | D191: 1563.633715 | E191: 191 | G191: 16.71758795 | H191: 1773.165353
A192: 192 | C192: 16.80452262 | D192: 1564.905794 | E192: 192 | G192: 16.80452262 | H192: 1773.57074
A193: 193 | C193: =0.2+(A193-1)*0.0869346734 -> 16.89145729 | D193: =1855.13044622572*C193/(3.11653694957686+C193) -> 1566.166819 | E193: 193 | G193: =0.2+(E193-1)*0.0869346734 -> 16.89145729 | H193: =1855.13044622572*G193/(0.772775445887083+G193) -> 1773.972137
A194: 194 | C194: 16.97839197 | D194: 1567.416934 | E194: 194 | G194: 16.97839197 | H194: 1774.369602
A195: 195 | C195: 17.06532664 | D195: 1568.656278 | E195: 195 | G195: 17.06532664 | H195: 1774.763194
A196: 196 | C196: 17.15226131 | D196: 1569.884991 | E196: 196 | G196: 17.15226131 | H196: 1775.152967
A197: 197 | C197: 17.23919599 | D197: 1571.103209 | E197: 197 | G197: 17.23919599 | H197: 1775.538978
A198: 198 | C198: 17.32613066 | D198: 1572.311066 | E198: 198 | G198: 17.32613066 | H198: 1775.92128
A199: 199 | C199: 17.41306533 | D199: 1573.508693 | E199: 199 | G199: 17.41306533 | H199: 1776.299928
A200: 200 | C200: 17.50000001 | D200: 1574.69622 | E200: 200 | G200: 17.50000001 | H200: 1776.674972

Sheet XLSTAT_20220427_105152_1_HID (hidden)
A1: 1 | C1: =0.2+(A1-1)*0.0869346734 -> 0.2 | D1: =1981.83168151597*C1/(3.8548767995521+C1) -> 97.75052508 | E1: 1 | G1: =0.2+(E1-1)*0.0869346734 -> 0.2 | H1: =1820.82872413489*G1/(0.676804748900211+G1) -> 415.3327697
A2: 2 | C2: 0.2869346734 | D2: 137.2965018 | E2: 2 | G2: 0.2869346734 | H2: 542.1163472
A3: 3 | C3: 0.3738693468 | D3: 175.216504 | E3: 3 | G3: 0.3738693468 | H3: 647.9193201
A4: 4 | C4: 0.4608040202 | D4: 211.6087923 | E4: 4 | G4: 0.4608040202 | H4: 737.5516249
A5: 5 | C5: 0.5477386936 | D5: 246.5638659 | E5: 5 | G5: 0.5477386936 | H5: 814.4573006
A6: 6 | C6: 0.634673367 | D6: 280.1652147 | E6: 6 | G6: 0.634673367 | H6: 881.1671983
A7: 7 | C7: 0.7216080404 | D7: 312.4899844 | E7: 7 | G7: 0.7216080404 | H7: 939.582831
A8: 8 | C8: 0.8085427138 | D8: 343.6095684 | E8: 8 | G8: 0.8085427138 | H8: 991.1605432
A9: 9 | C9: 0.8954773872 | D9: 373.5901338 | E9: 9 | G9: 0.8954773872 | H9: 1037.034582
A10: 10 | C10: 0.9824120606 | D10: 402.4930911 | E10: 10 | G10: 0.9824120606 | H10: 1078.101481
A11: 11 | C11: 1.069346734 | D11: 430.3755143 | E11: 11 | G11: 1.069346734 | H11: 1115.079229
A12: 12 | C12: 1.156281407 | D12: 457.2905167 | E12: 12 | G12: 1.156281407 | H12: 1148.549615
A13: 13 | C13: 1.243216081 | D13: 483.2875889 | E13: 13 | G13: 1.243216081 | H13: 1178.989058
A14: 14 | C14: 1.330150754 | D14: 508.4129021 | E14: 14 | G14: 1.330150754 | H14: 1206.79143
A15: 15 | C15: 1.417085428 | D15: 532.7095823 | E15: 15 | G15: 1.417085428 | H15: 1232.285189
A16: 16 | C16: 1.504020101 | D16: 556.217957 | E16: 16 | G16: 1.504020101 | H16: 1255.746422
A17: 17 | C17: 1.590954774 | D17: 578.9757786 | E17: 17 | G17: 1.590954774 | H17: 1277.40888
A18: 18 | C18: 1.677889448 | D18: 601.0184268 | E18: 18 | G18: 1.677889448 | H18: 1297.471793
A19: 19 | C19: 1.764824121 | D19: 622.3790919 | E19: 19 | G19: 1.764824121 | H19: 1316.106019
A20: 20 | C20: 1.851758795 | D20: 643.0889418 | E20: 20 | G20: 1.851758795 | H20: 1333.458917
A21: 21 | C21: 1.938693468 | D21: 663.1772738 | E21: 21 | G21: 1.938693468 | H21: 1349.658253
A22: 22 | C22: 2.025628141 | D22: 682.6716525 | E22: 22 | G22: 2.025628141 | H22: 1364.815355
A23: 23 | C23: 2.112562815 | D23: 701.5980364 | E23: 23 | G23: 2.112562815 | H23: 1379.027671
A24: 24 | C24: 2.199497488 | D24: 719.9808929 | E24: 24 | G24: 2.199497488 | H24: 1392.380868
A25: 25 | C25: 2.286432162 | D25: 737.8433041 | E25: 25 | G25: 2.286432162 | H25: 1404.95056
A26: 26 | C26: 2.373366835 | D26: 755.2070634 | E26: 26 | G26: 2.373366835 | H26: 1416.803739
A27: 27 | C27: 2.460301508 | D27: 772.0927641 | E27: 27 | G27: 2.460301508 | H27: 1427.999975
A28: 28 | C28: 2.547236182 | D28: 788.5198809 | E28: 28 | G28: 2.547236182 | H28: 1438.592408
A29: 29 | C29: 2.634170855 | D29: 804.5068449 | E29: 29 | G29: 2.634170855 | H29: 1448.628601
A30: 30 | C30: 2.721105529 | D30: 820.0711128 | E30: 30 | G30: 2.721105529 | H30: 1458.151247
A31: 31 | C31: 2.808040202 | D31: 835.2292298 | E31: 31 | G31: 2.808040202 | H31: 1467.198779
A32: 32 | C32: 2.894974875 | D32: 849.9968891 | E32: 32 | G32: 2.894974875 | H32: 1475.80589
A33: 33 | C33: =0.2+(A33-1)*0.0869346734 -> 2.981909549 | D33: =1981.83168151597*C33/(3.8548767995521+C33) -> 864.3889854 | E33: 33 | G33: =0.2+(E33-1)*0.0869346734 -> 2.981909549 | H33: =1820.82872413489*G33/(0.676804748900211+G33) -> 1484.003974
A34: 34 | C34: 3.068844222 | D34: 878.4196657 | E34: 34 | G34: 3.068844222 | H34: 1491.821512
A35: 35 | C35: 3.155778896 | D35: 892.1023749 | E35: 35 | G35: 3.155778896 | H35: 1499.284397
A36: 36 | C36: 3.242713569 | D36: 905.4498994 | E36: 36 | G36: 3.242713569 | H36: 1506.416231
A37: 37 | C37: 3.329648242 | D37: 918.4744067 | E37: 37 | G37: 3.329648242 | H37: 1513.238561
A38: 38 | C38: 3.416582916 | D38: 931.1874823 | E38: 38 | G38: 3.416582916 | H38: 1519.771109
A39: 39 | C39: 3.503517589 | D39: 943.6001644 | E39: 39 | G39: 3.503517589 | H39: 1526.031953
A40: 40 | C40: 3.590452263 | D40: 955.7229755 | E40: 40 | G40: 3.590452263 | H40: 1532.037699
A41: 41 | C41: 3.677386936 | D41: 967.5659524 | E41: 41 | G41: 3.677386936 | H41: 1537.803626
A42: 42 | C42: 3.764321609 | D42: 979.1386737 | E42: 42 | G42: 3.764321609 | H42: 1543.343819
A43: 43 | C43: 3.851256283 | D43: 990.4502859 | E43: 43 | G43: 3.851256283 | H43: 1548.671278
A44: 44 | C44: 3.938190956 | D44: 1001.509527 | E44: 44 | G44: 3.938190956 | H44: 1553.798025
A45: 45 | C45: 4.02512563 | D45: 1012.324751 | E45: 45 | G45: 4.02512563 | H45: 1558.735195
A46: 46 | C46: 4.112060303 | D46: 1022.903944 | E46: 46 | G46: 4.112060303 | H46: 1563.49311
A47: 47 | C47: 4.198994976 | D47: 1033.254751 | E47: 47 | G47: 4.198994976 | H47: 1568.08136
A48: 48 | C48: 4.28592965 | D48: 1043.384487 | E48: 48 | G48: 4.28592965 | H48: 1572.508861
A49: 49 | C49: 4.372864323 | D49: 1053.300162 | E49: 49 | G49: 4.372864323 | H49: 1576.783914
A50: 50 | C50: 4.459798997 | D50: 1063.008488 | E50: 50 | G50: 4.459798997 | H50: 1580.914261
A51: 51 | C51: 4.54673367 | D51: 1072.515902 | E51: 51 | G51: 4.54673367 | H51: 1584.907127
A52: 52 | C52: 4.633668343 | D52: 1081.828578 | E52: 52 | G52: 4.633668343 | H52: 1588.769262
A53: 53 | C53: 4.720603017 | D53: 1090.952438 | E53: 53 | G53: 4.720603017 | H53: 1592.506985
A54: 54 | C54: 4.80753769 | D54: 1099.893167 | E54: 54 | G54: 4.80753769 | H54: 1596.126211
A55: 55 | C55: 4.894472364 | D55: 1108.656223 | E55: 55 | G55: 4.894472364 | H55: 1599.632488
A56: 56 | C56: 4.981407037 | D56: 1117.24685 | E56: 56 | G56: 4.981407037 | H56: 1603.031022
A57: 57 | C57: 5.06834171 | D57: 1125.670089 | E57: 57 | G57: 5.06834171 | H57: 1606.326703
A58: 58 | C58: 5.155276384 | D58: 1133.930784 | E58: 58 | G58: 5.155276384 | H58: 1609.524132
A59: 59 | C59: 5.242211057 | D59: 1142.033596 | E59: 59 | G59: 5.242211057 | H59: 1612.627637
A60: 60 | C60: 5.329145731 | D60: 1149.983007 | E60: 60 | G60: 5.329145731 | H60: 1615.641297
A61: 61 | C61: 5.416080404 | D61: 1157.783333 | E61: 61 | G61: 5.416080404 | H61: 1618.568958
A62: 62 | C62: 5.503015077 | D62: 1165.43873 | E62: 62 | G62: 5.503015077 | H62: 1621.414249
A63: 63 | C63: 5.589949751 | D63: 1172.953199 | E63: 63 | G63: 5.589949751 | H63: 1624.180598
A64: 64 | C64: 5.676884424 | D64: 1180.330596 | E64: 64 | G64: 5.676884424 | H64: 1626.871246
A65: 65 | C65: =0.2+(A65-1)*0.0869346734 -> 5.763819098 | D65: =1981.83168151597*C65/(3.8548767995521+C65) -> 1187.574638 | E65: 65 | G65: =0.2+(E65-1)*0.0869346734 -> 5.763819098 | H65: =1820.82872413489*G65/(0.676804748900211+G65) -> 1629.489258
A66: 66 | C66: 5.850753771 | D66: 1194.688908 | E66: 66 | G66: 5.850753771 | H66: 1632.037536
A67: 67 | C67: 5.937688444 | D67: 1201.676862 | E67: 67 | G67: 5.937688444 | H67: 1634.51883
A68: 68 | C68: 6.024623118 | D68: 1208.541836 | E68: 68 | G68: 6.024623118 | H68: 1636.935746
A69: 69 | C69: 6.111557791 | D69: 1215.287046 | E69: 69 | G69: 6.111557791 | H69: 1639.290758
A70: 70 | C70: 6.198492465 | D70: 1221.915601 | E70: 70 | G70: 6.198492465 | H70: 1641.586214
A71: 71 | C71: 6.285427138 | D71: 1228.4305 | E71: 71 | G71: 6.285427138 | H71: 1643.824346
A72: 72 | C72: 6.372361811 | D72: 1234.834642 | E72: 72 | G72: 6.372361811 | H72: 1646.007273
A73: 73 | C73: 6.459296485 | D73: 1241.130827 | E73: 73 | G73: 6.459296485 | H73: 1648.137014
A74: 74 | C74: 6.546231158 | D74: 1247.321762 | E74: 74 | G74: 6.546231158 | H74: 1650.215488
A75: 75 | C75: 6.633165832 | D75: 1253.410065 | E75: 75 | G75: 6.633165832 | H75: 1652.244526
A76: 76 | C76: 6.720100505 | D76: 1259.398266 | E76: 76 | G76: 6.720100505 | H76: 1654.22587
A77: 77 | C77: 6.807035178 | D77: 1265.288815 | E77: 77 | G77: 6.807035178 | H77: 1656.161182
A78: 78 | C78: 6.893969852 | D78: 1271.084081 | E78: 78 | G78: 6.893969852 | H78: 1658.052048
A79: 79 | C79: 6.980904525 | D79: 1276.786356 | E79: 79 | G79: 6.980904525 | H79: 1659.899981
A80: 80 | C80: 7.067839199 | D80: 1282.397862 | E80: 80 | G80: 7.067839199 | H80: 1661.706428
A81: 81 | C81: 7.154773872 | D81: 1287.920748 | E81: 81 | G81: 7.154773872 | H81: 1663.47277
A82: 82 | C82: 7.241708545 | D82: 1293.357098 | E82: 82 | G82: 7.241708545 | H82: 1665.200328
A83: 83 | C83: 7.328643219 | D83: 1298.70893 | E83: 83 | G83: 7.328643219 | H83: 1666.890365
A84: 84 | C84: 7.415577892 | D84: 1303.978198 | E84: 84 | G84: 7.415577892 | H84: 1668.54409
A85: 85 | C85: 7.502512566 | D85: 1309.1668 | E85: 85 | G85: 7.502512566 | H85: 1670.162662
A86: 86 | C86: 7.589447239 | D86: 1314.276574 | E86: 86 | G86: 7.589447239 | H86: 1671.74719
A87: 87 | C87: 7.676381912 | D87: 1319.309301 | E87: 87 | G87: 7.676381912 | H87: 1673.298736
A88: 88 | C88: 7.763316586 | D88: 1324.266713 | E88: 88 | G88: 7.763316586 | H88: 1674.81832
A89: 89 | C89: 7.850251259 | D89: 1329.150486 | E89: 89 | G89: 7.850251259 | H89: 1676.306919
A90: 90 | C90: 7.937185933 | D90: 1333.962251 | E90: 90 | G90: 7.937185933 | H90: 1677.765471
A91: 91 | C91: 8.024120606 | D91: 1338.703587 | E91: 91 | G91: 8.024120606 | H91: 1679.194877
A92: 92 | C92: 8.111055279 | D92: 1343.376029 | E92: 92 | G92: 8.111055279 | H92: 1680.596003
A93: 93 | C93: 8.197989953 | D93: 1347.981069 | E93: 93 | G93: 8.197989953 | H93: 1681.969678
A94: 94 | C94: 8.284924626 | D94: 1352.520155 | E94: 94 | G94: 8.284924626 | H94: 1683.316702
A95: 95 | C95: 8.3718593 | D95: 1356.994692 | E95: 95 | G95: 8.3718593 | H95: 1684.637843
A96: 96 | C96: 8.458793973 | D96: 1361.40605 | E96: 96 | G96: 8.458793973 | H96: 1685.93384
A97: 97 | C97: =0.2+(A97-1)*0.0869346734 -> 8.545728646 | D97: =1981.83168151597*C97/(3.8548767995521+C97) -> 1365.755555 | E97: 97 | G97: =0.2+(E97-1)*0.0869346734 -> 8.545728646 | H97: =1820.82872413489*G97/(0.676804748900211+G97) -> 1687.205405
A98: 98 | C98: 8.63266332 | D98: 1370.0445 | E98: 98 | G98: 8.63266332 | H98: 1688.45322
A99: 99 | C99: 8.719597993 | D99: 1374.274142 | E99: 99 | G99: 8.719597993 | H99: 1689.677946
A100: 100 | C100: 8.806532667 | D100: 1378.445701 | E100: 100 | G100: 8.806532667 | H100: 1690.880218
A101: 101 | C101: 8.89346734 | D101: 1382.560365 | E101: 101 | G101: 8.89346734 | H101: 1692.060648
A102: 102 | C102: 8.980402013 | D102: 1386.619292 | E102: 102 | G102: 8.980402013 | H102: 1693.219825
A103: 103 | C103: 9.067336687 | D103: 1390.623606 | E103: 103 | G103: 9.067336687 | H103: 1694.358318
A104: 104 | C104: 9.15427136 | D104: 1394.574401 | E104: 104 | G104: 9.15427136 | H104: 1695.476676
A105: 105 | C105: 9.241206034 | D105: 1398.472744 | E105: 105 | G105: 9.241206034 | H105: 1696.575428
A106: 106 | C106: 9.328140707 | D106: 1402.319672 | E106: 106 | G106: 9.328140707 | H106: 1697.655086
A107: 107 | C107: 9.41507538 | D107: 1406.116195 | E107: 107 | G107: 9.41507538 | H107: 1698.716143
A108: 108 | C108: 9.502010054 | D108: 1409.863299 | E108: 108 | G108: 9.502010054 | H108: 1699.759076
A109: 109 | C109: 9.588944727 | D109: 1413.561941 | E109: 109 | G109: 9.588944727 | H109: 1700.784344
A110: 110 | C110: 9.675879401 | D110: 1417.213056 | E110: 110 | G110: 9.675879401 | H110: 1701.792394
A111: 111 | C111: 9.762814074 | D111: 1420.817554 | E111: 111 | G111: 9.762814074 | H111: 1702.783655
A112: 112 | C112: 9.849748747 | D112: 1424.376321 | E112: 112 | G112: 9.849748747 | H112: 1703.758543
A113: 113 | C113: 9.936683421 | D113: 1427.890224 | E113: 113 | G113: 9.936683421 | H113: 1704.71746
A114: 114 | C114: 10.02361809 | D114: 1431.360105 | E114: 114 | G114: 10.02361809 | H114: 1705.660796
A115: 115 | C115: 10.11055277 | D115: 1434.786785 | E115: 115 | G115: 10.11055277 | H115: 1706.588928
A116: 116 | C116: 10.19748744 | D116: 1438.171068 | E116: 116 | G116: 10.19748744 | H116: 1707.502219
A117: 117 | C117: 10.28442211 | D117: 1441.513734 | E117: 117 | G117: 10.28442211 | H117: 1708.401024
A118: 118 | C118: 10.37135679 | D118: 1444.815547 | E118: 118 | G118: 10.37135679 | H118: 1709.285684
A119: 119 | C119: 10.45829146 | D119: 1448.077251 | E119: 119 | G119: 10.45829146 | H119: 1710.15653
A120: 120 | C120: 10.54522613 | D120: 1451.299573 | E120: 120 | G120: 10.54522613 | H120: 1711.013884
A121: 121 | C121: 10.63216081 | D121: 1454.483222 | E121: 121 | G121: 10.63216081 | H121: 1711.858056
A122: 122 | C122: 10.71909548 | D122: 1457.628889 | E122: 122 | G122: 10.71909548 | H122: 1712.689349
A123: 123 | C123: 10.80603015 | D123: 1460.73725 | E123: 123 | G123: 10.80603015 | H123: 1713.508055
A124: 124 | C124: 10.89296483 | D124: 1463.808966 | E124: 124 | G124: 10.89296483 | H124: 1714.314457
A125: 125 | C125: 10.9798995 | D125: 1466.84468 | E125: 125 | G125: 10.9798995 | H125: 1715.108831
A126: 126 | C126: 11.06683417 | D126: 1469.845021 | E126: 126 | G126: 11.06683417 | H126: 1715.891444
A127: 127 | C127: 11.15376885 | D127: 1472.810605 | E127: 127 | G127: 11.15376885 | H127: 1716.662555
A128: 128 | C128: 11.24070352 | D128: 1475.742031 | E128: 128 | G128: 11.24070352 | H128: 1717.422416
A129: 129 | C129: =0.2+(A129-1)*0.0869346734 -> 11.3276382 | D129: =1981.83168151597*C129/(3.8548767995521+C129) -> 1478.639887 | E129: 129 | G129: =0.2+(E129-1)*0.0869346734 -> 11.3276382 | H129: =1820.82872413489*G129/(0.676804748900211+G129) -> 1718.171272
A130: 130 | C130: 11.41457287 | D130: 1481.504745 | E130: 130 | G130: 11.41457287 | H130: 1718.909359
A131: 131 | C131: 11.50150754 | D131: 1484.337167 | E131: 131 | G131: 11.50150754 | H131: 1719.636909
A132: 132 | C132: 11.58844222 | D132: 1487.1377 | E132: 132 | G132: 11.58844222 | H132: 1720.354145
A133: 133 | C133: 11.67537689 | D133: 1489.90688 | E133: 133 | G133: 11.67537689 | H133: 1721.061285
A134: 134 | C134: 11.76231156 | D134: 1492.645229 | E134: 134 | G134: 11.76231156 | H134: 1721.758541
A135: 135 | C135: 11.84924624 | D135: 1495.353261 | E135: 135 | G135: 11.84924624 | H135: 1722.446119
A136: 136 | C136: 11.93618091 | D136: 1498.031476 | E136: 136 | G136: 11.93618091 | H136: 1723.124219
A137: 137 | C137: 12.02311558 | D137: 1500.680363 | E137: 137 | G137: 12.02311558 | H137: 1723.793035
A138: 138 | C138: 12.11005026 | D138: 1503.300402 | E138: 138 | G138: 12.11005026 | H138: 1724.452756
A139: 139 | C139: 12.19698493 | D139: 1505.892062 | E139: 139 | G139: 12.19698493 | H139: 1725.103568
A140: 140 | C140: 12.2839196 | D140: 1508.4558 | E140: 140 | G140: 12.2839196 | H140: 1725.745649
A141: 141 | C141: 12.37085428 | D141: 1510.992067 | E141: 141 | G141: 12.37085428 | H141: 1726.379174
A142: 142 | C142: 12.45778895 | D142: 1513.5013 | E142: 142 | G142: 12.45778895 | H142: 1727.004312
A143: 143 | C143: 12.54472362 | D143: 1515.983931 | E143: 143 | G143: 12.54472362 | H143: 1727.62123
A144: 144 | C144: 12.6316583 | D144: 1518.440379 | E144: 144 | G144: 12.6316583 | H144: 1728.230088
A145: 145 | C145: 12.71859297 | D145: 1520.871057 | E145: 145 | G145: 12.71859297 | H145: 1728.831043
A146: 146 | C146: 12.80552764 | D146: 1523.276369 | E146: 146 | G146: 12.80552764 | H146: 1729.424248
A147: 147 | C147: 12.89246232 | D147: 1525.656708 | E147: 147 | G147: 12.89246232 | H147: 1730.009852
A148: 148 | C148: 12.97939699 | D148: 1528.012463 | E148: 148 | G148: 12.97939699 | H148: 1730.588
A149: 149 | C149: 13.06633166 | D149: 1530.344012 | E149: 149 | G149: 13.06633166 | H149: 1731.158834
A150: 150 | C150: 13.15326634 | D150: 1532.651726 | E150: 150 | G150: 13.15326634 | H150: 1731.722492
A151: 151 | C151: 13.24020101 | D151: 1534.935969 | E151: 151 | G151: 13.24020101 | H151: 1732.279107
A152: 152 | C152: 13.32713568 | D152: 1537.197098 | E152: 152 | G152: 13.32713568 | H152: 1732.828812
A153: 153 | C153: 13.41407036 | D153: 1539.43546 | E153: 153 | G153: 13.41407036 | H153: 1733.371734
A154: 154 | C154: 13.50100503 | D154: 1541.651399 | E154: 154 | G154: 13.50100503 | H154: 1733.907998
A155: 155 | C155: 13.5879397 | D155: 1543.845249 | E155: 155 | G155: 13.5879397 | H155: 1734.437725
A156: 156 | C156: 13.67487438 | D156: 1546.01734 | E156: 156 | G156: 13.67487438 | H156: 1734.961035
A157: 157 | C157: 13.76180905 | D157: 1548.167993 | E157: 157 | G157: 13.76180905 | H157: 1735.478043
A158: 158 | C158: 13.84874372 | D158: 1550.297524 | E158: 158 | G158: 13.84874372 | H158: 1735.988862
A159: 159 | C159: 13.9356784 | D159: 1552.406243 | E159: 159 | G159: 13.9356784 | H159: 1736.493604
A160: 160 | C160: 14.02261307 | D160: 1554.494453 | E160: 160 | G160: 14.02261307 | H160: 1736.992375
A161: 161 | C161: =0.2+(A161-1)*0.0869346734 -> 14.10954774 | D161: =1981.83168151597*C161/(3.8548767995521+C161) -> 1556.562453 | E161: 161 | G161: =0.2+(E161-1)*0.0869346734 -> 14.10954774 | H161: =1820.82872413489*G161/(0.676804748900211+G161) -> 1737.485281
A162: 162 | C162: 14.19648242 | D162: 1558.610534 | E162: 162 | G162: 14.19648242 | H162: 1737.972425
A163: 163 | C163: 14.28341709 | D163: 1560.638982 | E163: 163 | G163: 14.28341709 | H163: 1738.453908
A164: 164 | C164: 14.37035176 | D164: 1562.648079 | E164: 164 | G164: 14.37035176 | H164: 1738.929827
A165: 165 | C165: 14.45728644 | D165: 1564.6381 | E165: 165 | G165: 14.45728644 | H165: 1739.400278
A166: 166 | C166: 14.54422111 | D166: 1566.609315 | E166: 166 | G166: 14.54422111 | H166: 1739.865356
A167: 167 | C167: 14.63115578 | D167: 1568.561991 | E167: 167 | G167: 14.63115578 | H167: 1740.325151
A168: 168 | C168: 14.71809046 | D168: 1570.496386 | E168: 168 | G168: 14.71809046 | H168: 1740.779753
A169: 169 | C169: 14.80502513 | D169: 1572.412758 | E169: 169 | G169: 14.80502513 | H169: 1741.229249
A170: 170 | C170: 14.8919598 | D170: 1574.311355 | E170: 170 | G170: 14.8919598 | H170: 1741.673726
A171: 171 | C171: 14.97889448 | D171: 1576.192425 | E171: 171 | G171: 14.97889448 | H171: 1742.113267
A172: 172 | C172: 15.06582915 | D172: 1578.05621 | E172: 172 | G172: 15.06582915 | H172: 1742.547953
A173: 173 | C173: 15.15276382 | D173: 1579.902946 | E173: 173 | G173: 15.15276382 | H173: 1742.977864
A174: 174 | C174: 15.2396985 | D174: 1581.732865 | E174: 174 | G174: 15.2396985 | H174: 1743.403079
A175: 175 | C175: 15.32663317 | D175: 1583.546198 | E175: 175 | G175: 15.32663317 | H175: 1743.823675
A176: 176 | C176: 15.41356784 | D176: 1585.343168 | E176: 176 | G176: 15.41356784 | H176: 1744.239725
A177: 177 | C177: 15.50050252 | D177: 1587.123996 | E177: 177 | G177: 15.50050252 | H177: 1744.651304
A178: 178 | C178: 15.58743719 | D178: 1588.888898 | E178: 178 | G178: 15.58743719 | H178: 1745.058483
A179: 179 | C179: 15.67437187 | D179: 1590.638088 | E179: 179 | G179: 15.67437187 | H179: 1745.461333
A180: 180 | C180: 15.76130654 | D180: 1592.371773 | E180: 180 | G180: 15.76130654 | H180: 1745.859921
A181: 181 | C181: 15.84824121 | D181: 1594.090159 | E181: 181 | G181: 15.84824121 | H181: 1746.254316
A182: 182 | C182: 15.93517589 | D182: 1595.793449 | E182: 182 | G182: 15.93517589 | H182: 1746.644582
A183: 183 | C183: 16.02211056 | D183: 1597.481839 | E183: 183 | G183: 16.02211056 | H183: 1747.030785
A184: 184 | C184: 16.10904523 | D184: 1599.155524 | E184: 184 | G184: 16.10904523 | H184: 1747.412988
A185: 185 | C185: 16.19597991 | D185: 1600.814696 | E185: 185 | G185: 16.19597991 | H185: 1747.791253
A186: 186 | C186: 16.28291458 | D186: 1602.459544 | E186: 186 | G186: 16.28291458 | H186: 1748.165639
A187: 187 | C187: 16.36984925 | D187: 1604.09025 | E187: 187 | G187: 16.36984925 | H187: 1748.536207
A188: 188 | C188: 16.45678393 | D188: 1605.706998 | E188: 188 | G188: 16.45678393 | H188: 1748.903014
A189: 189 | C189: 16.5437186 | D189: 1607.309965 | E189: 189 | G189: 16.5437186 | H189: 1749.266118
A190: 190 | C190: 16.63065327 | D190: 1608.899327 | E190: 190 | G190: 16.63065327 | H190: 1749.625574
A191: 191 | C191: 16.71758795 | D191: 1610.475256 | E191: 191 | G191: 16.71758795 | H191: 1749.981437
A192: 192 | C192: 16.80452262 | D192: 1612.037923 | E192: 192 | G192: 16.80452262 | H192: 1750.333761
A193: 193 | C193: =0.2+(A193-1)*0.0869346734 -> 16.89145729 | D193: =1981.83168151597*C193/(3.8548767995521+C193) -> 1613.587493 | E193: 193 | G193: =0.2+(E193-1)*0.0869346734 -> 16.89145729 | H193: =1820.82872413489*G193/(0.676804748900211+G193) -> 1750.682598
A194: 194 | C194: 16.97839197 | D194: 1615.12413 | E194: 194 | G194: 16.97839197 | H194: 1751.027999
A195: 195 | C195: 17.06532664 | D195: 1616.647997 | E195: 195 | G195: 17.06532664 | H195: 1751.370016
A196: 196 | C196: 17.15226131 | D196: 1618.159251 | E196: 196 | G196: 17.15226131 | H196: 1751.708697
A197: 197 | C197: 17.23919599 | D197: 1619.658049 | E197: 197 | G197: 17.23919599 | H197: 1752.044092
A198: 198 | C198: 17.32613066 | D198: 1621.144543 | E198: 198 | G198: 17.32613066 | H198: 1752.376247
A199: 199 | C199: 17.41306533 | D199: 1622.618885 | E199: 199 | G199: 17.41306533 | H199: 1752.70521
A200: 200 | C200: 17.50000001 | D200: 1624.081223 | E200: 200 | G200: 17.50000001 | H200: 1753.031026

Sheet XLSTAT_20220427_095844_1_HID (hidden)
A1: 1 | C1: =0.2+(A1-1)*0.0869346734 -> 0.2 | D1: =1855.13044622572*C1/(3.11653694957686+C1) -> 111.871538 | E1: 1 | G1: =0.2+(E1-1)*0.0869346734 -> 0.2 | H1: =1855.13044622572*G1/(0.772775445887083+G1) -> 381.409801
A2: 2 | C2: 0.2869346734 | D2: 156.3994967 | E2: 2 | G2: 0.2869346734 | H2: 502.3083568
A3: 3 | C3: 0.3738693468 | D3: 198.709362 | E3: 3 | G3: 0.3738693468 | H3: 604.8746853
A4: 4 | C4: 0.4608040202 | D4: 238.9628427 | E4: 4 | G4: 0.4608040202 | H4: 692.9845957
A5: 5 | C5: 0.5477386936 | D5: 277.3063017 | E5: 5 | G5: 0.5477386936 | H5: 769.4932577
A6: 6 | C6: 0.634673367 | D6: 313.8725337 | E6: 6 | G6: 0.634673367 | H6: 836.5504136
A7: 7 | C7: 0.7216080404 | D7: 348.7823023 | E7: 7 | G7: 0.7216080404 | H7: 895.8055668
A8: 8 | C8: 0.8085427138 | D8: 382.145672 | E8: 8 | G8: 0.8085427138 | H8: 948.545488
A9: 9 | C9: 0.8954773872 | D9: 414.0631676 | E9: 9 | G9: 0.8954773872 | H9: 995.788727
A10: 10 | C10: 0.9824120606 | D10: 444.626786 | E10: 10 | G10: 0.9824120606 | H10: 1038.352038
A11: 11 | C11: 1.069346734 | D11: 473.9208812 | E11: 11 | G11: 1.069346734 | H11: 1076.897996
A12: 12 | C12: 1.156281407 | D12: 502.0229423 | E12: 12 | G12: 1.156281407 | H12: 1111.969738
A13: 13 | C13: 1.243216081 | D13: 529.0042777 | E13: 13 | G13: 1.243216081 | H13: 1144.016714
A14: 14 | C14: 1.330150754 | D14: 554.9306195 | E14: 14 | G14: 1.330150754 | H14: 1173.414056
A15: 15 | C15: 1.417085428 | D15: 579.8626579 | E15: 15 | G15: 1.417085428 | H15: 1200.477324
A16: 16 | C16: 1.504020101 | D16: 603.8565157 | E16: 16 | G16: 1.504020101 | H16: 1225.473884
A17: 17 | C17: 1.590954774 | D17: 626.9641698 | E17: 17 | G17: 1.590954774 | H17: 1248.631767
A18: 18 | C18: 1.677889448 | D18: 649.2338274 | E18: 18 | G18: 1.677889448 | H18: 1270.146648
A19: 19 | C19: 1.764824121 | D19: 670.7102613 | E19: 19 | G19: 1.764824121 | H19: 1290.187389
A20: 20 | C20: 1.851758795 | D20: 691.4351109 | E20: 20 | G20: 1.851758795 | H20: 1308.900477
A21: 21 | C21: 1.938693468 | D21: 711.447151 | E21: 21 | G21: 1.938693468 | H21: 1326.413613
A22: 22 | C22: 2.025628141 | D22: 730.7825345 | E22: 22 | G22: 2.025628141 | H22: 1342.838629
A23: 23 | C23: 2.112562815 | D23: 749.4750098 | E23: 23 | G23: 2.112562815 | H23: 1358.273881
A24: 24 | C24: 2.199497488 | D24: 767.5561181 | E24: 24 | G24: 2.199497488 | H24: 1372.806215
A25: 25 | C25: 2.286432162 | D25: 785.0553703 | E25: 25 | G25: 2.286432162 | H25: 1386.512607
A26: 26 | C26: 2.373366835 | D26: 802.0004081 | E26: 26 | G26: 2.373366835 | H26: 1399.461525
A27: 27 | C27: 2.460301508 | D27: 818.4171497 | E27: 27 | G27: 2.460301508 | H27: 1411.714073
A28: 28 | C28: 2.547236182 | D28: 834.3299219 | E28: 28 | G28: 2.547236182 | H28: 1423.324953
A29: 29 | C29: 2.634170855 | D29: 849.7615806 | E29: 29 | G29: 2.634170855 | H29: 1434.343286
A30: 30 | C30: 2.721105529 | D30: 864.7336202 | E30: 30 | G30: 2.721105529 | H30: 1444.813304
A31: 31 | C31: 2.808040202 | D31: 879.2662733 | E31: 31 | G31: 2.808040202 | H31: 1454.774941
A32: 32 | C32: 2.894974875 | D32: 893.3786024 | E32: 32 | G32: 2.894974875 | H32: 1464.264348
A33: 33 | C33: =0.2+(A33-1)*0.0869346734 -> 2.981909549 | D33: =1855.13044622572*C33/(3.11653694957686+C33) -> 907.0885829 | E33: 33 | G33: =0.2+(E33-1)*0.0869346734 -> 2.981909549 | H33: =1855.13044622572*G33/(0.772775445887083+G33) -> 1473.314326
A34: 34 | C34: 3.068844222 | D34: 920.4131796 | E34: 34 | G34: 3.068844222 | H34: 1481.954707
A35: 35 | C35: 3.155778896 | D35: 933.3684169 | E35: 35 | G35: 3.155778896 | H35: 1490.212684
A36: 36 | C36: 3.242713569 | D36: 945.9694429 | E36: 36 | G36: 3.242713569 | H36: 1498.113094
A37: 37 | C37: 3.329648242 | D37: 958.2305884 | E37: 37 | G37: 3.329648242 | H37: 1505.678667
A38: 38 | C38: 3.416582916 | D38: 970.1654217 | E38: 38 | G38: 3.416582916 | H38: 1512.930249
A39: 39 | C39: 3.503517589 | D39: 981.7867981 | E39: 39 | G39: 3.503517589 | H39: 1519.88699
A40: 40 | C40: 3.590452263 | D40: 993.1069064 | E40: 40 | G40: 3.590452263 | H40: 1526.566513
A41: 41 | C41: 3.677386936 | D41: 1004.137312 | E41: 41 | G41: 3.677386936 | H41: 1532.985065
A42: 42 | C42: 3.764321609 | D42: 1014.888995 | E42: 42 | G42: 3.764321609 | H42: 1539.157647
A43: 43 | C43: 3.851256283 | D43: 1025.372388 | E43: 43 | G43: 3.851256283 | H43: 1545.098132
A44: 44 | C44: 3.938190956 | D44: 1035.59741 | E44: 44 | G44: 3.938190956 | H44: 1550.81937
A45: 45 | C45: 4.02512563 | D45: 1045.573495 | E45: 45 | G45: 4.02512563 | H45: 1556.333277
A46: 46 | C46: 4.112060303 | D46: 1055.309626 | E46: 46 | G46: 4.112060303 | H46: 1561.650925
A47: 47 | C47: 4.198994976 | D47: 1064.814357 | E47: 47 | G47: 4.198994976 | H47: 1566.782607
A48: 48 | C48: 4.28592965 | D48: 1074.09584 | E48: 48 | G48: 4.28592965 | H48: 1571.737912
A49: 49 | C49: 4.372864323 | D49: 1083.161851 | E49: 49 | G49: 4.372864323 | H49: 1576.525779
A50: 50 | C50: 4.459798997 | D50: 1092.019805 | E50: 50 | G50: 4.459798997 | H50: 1581.154553
A51: 51 | C51: 4.54673367 | D51: 1100.676784 | E51: 51 | G51: 4.54673367 | H51: 1585.632035
A52: 52 | C52: 4.633668343 | D52: 1109.139551 | E52: 52 | G52: 4.633668343 | H52: 1589.965522
A53: 53 | C53: 4.720603017 | D53: 1117.414569 | E53: 53 | G53: 4.720603017 | H53: 1594.161851
A54: 54 | C54: 4.80753769 | D54: 1125.508018 | E54: 54 | G54: 4.80753769 | H54: 1598.227433
A55: 55 | C55: 4.894472364 | D55: 1133.425808 | E55: 55 | G55: 4.894472364 | H55: 1602.168284
A56: 56 | C56: 4.981407037 | D56: 1141.173596 | E56: 56 | G56: 4.981407037 | H56: 1605.990058
A57: 57 | C57: 5.06834171 | D57: 1148.7568 | E57: 57 | G57: 5.06834171 | H57: 1609.698071
A58: 58 | C58: 5.155276384 | D58: 1156.180609 | E58: 58 | G58: 5.155276384 | H58: 1613.297328
A59: 59 | C59: 5.242211057 | D59: 1163.449996 | E59: 59 | G59: 5.242211057 | H59: 1616.792545
A60: 60 | C60: 5.329145731 | D60: 1170.56973 | E60: 60 | G60: 5.329145731 | H60: 1620.188169
A61: 61 | C61: 5.416080404 | D61: 1177.544385 | E61: 61 | G61: 5.416080404 | H61: 1623.488396
A62: 62 | C62: 5.503015077 | D62: 1184.378351 | E62: 62 | G62: 5.503015077 | H62: 1626.697191
A63: 63 | C63: 5.589949751 | D63: 1191.075842 | E63: 63 | G63: 5.589949751 | H63: 1629.818302
A64: 64 | C64: 5.676884424 | D64: 1197.640905 | E64: 64 | G64: 5.676884424 | H64: 1632.855274
A65: 65 | C65: =0.2+(A65-1)*0.0869346734 -> 5.763819098 | D65: =1855.13044622572*C65/(3.11653694957686+C65) -> 1204.077431 | E65: 65 | G65: =0.2+(E65-1)*0.0869346734 -> 5.763819098 | H65: =1855.13044622572*G65/(0.772775445887083+G65) -> 1635.811465
A66: 66 | C66: 5.850753771 | D66: 1210.389157 | E66: 66 | G66: 5.850753771 | H66: 1638.690055
A67: 67 | C67: 5.937688444 | D67: 1216.579678 | E67: 67 | G67: 5.937688444 | H67: 1641.49406
A68: 68 | C68: 6.024623118 | D68: 1222.652452 | E68: 68 | G68: 6.024623118 | H68: 1644.226342
A69: 69 | C69: 6.111557791 | D69: 1228.610808 | E69: 69 | G69: 6.111557791 | H69: 1646.889618
A70: 70 | C70: 6.198492465 | D70: 1234.457948 | E70: 70 | G70: 6.198492465 | H70: 1649.486469
A71: 71 | C71: 6.285427138 | D71: 1240.196957 | E71: 71 | G71: 6.285427138 | H71: 1652.019351
A72: 72 | C72: 6.372361811 | D72: 1245.830808 | E72: 72 | G72: 6.372361811 | H72: 1654.490598
A73: 73 | C73: 6.459296485 | D73: 1251.362365 | E73: 73 | G73: 6.459296485 | H73: 1656.902432
A74: 74 | C74: 6.546231158 | D74: 1256.794388 | E74: 74 | G74: 6.546231158 | H74: 1659.256971
A75: 75 | C75: 6.633165832 | D75: 1262.12954 | E75: 75 | G75: 6.633165832 | H75: 1661.556233
A76: 76 | C76: 6.720100505 | D76: 1267.37039 | E76: 76 | G76: 6.720100505 | H76: 1663.802141
A77: 77 | C77: 6.807035178 | D77: 1272.519416 | E77: 77 | G77: 6.807035178 | H77: 1665.996531
A78: 78 | C78: 6.893969852 | D78: 1277.57901 | E78: 78 | G78: 6.893969852 | H78: 1668.141156
A79: 79 | C79: 6.980904525 | D79: 1282.551482 | E79: 79 | G79: 6.980904525 | H79: 1670.23769
A80: 80 | C80: 7.067839199 | D80: 1287.439063 | E80: 80 | G80: 7.067839199 | H80: 1672.287733
A81: 81 | C81: 7.154773872 | D81: 1292.243909 | E81: 81 | G81: 7.154773872 | H81: 1674.292813
A82: 82 | C82: 7.241708545 | D82: 1296.968103 | E82: 82 | G82: 7.241708545 | H82: 1676.254394
A83: 83 | C83: 7.328643219 | D83: 1301.613658 | E83: 83 | G83: 7.328643219 | H83: 1678.173876
A84: 84 | C84: 7.415577892 | D84: 1306.182522 | E84: 84 | G84: 7.415577892 | H84: 1680.052601
A85: 85 | C85: 7.502512566 | D85: 1310.676578 | E85: 85 | G85: 7.502512566 | H85: 1681.891853
A86: 86 | C86: 7.589447239 | D86: 1315.09765 | E86: 86 | G86: 7.589447239 | H86: 1683.692862
A87: 87 | C87: 7.676381912 | D87: 1319.447499 | E87: 87 | G87: 7.676381912 | H87: 1685.456809
A88: 88 | C88: 7.763316586 | D88: 1323.727835 | E88: 88 | G88: 7.763316586 | H88: 1687.184828
A89: 89 | C89: 7.850251259 | D89: 1327.940309 | E89: 89 | G89: 7.850251259 | H89: 1688.878003
A90: 90 | C90: 7.937185933 | D90: 1332.086523 | E90: 90 | G90: 7.937185933 | H90: 1690.537379
A91: 91 | C91: 8.024120606 | D91: 1336.168028 | E91: 91 | G91: 8.024120606 | H91: 1692.163958
A92: 92 | C92: 8.111055279 | D92: 1340.186328 | E92: 92 | G92: 8.111055279 | H92: 1693.758702
A93: 93 | C93: 8.197989953 | D93: 1344.142878 | E93: 93 | G93: 8.197989953 | H93: 1695.322538
A94: 94 | C94: 8.284924626 | D94: 1348.039093 | E94: 94 | G94: 8.284924626 | H94: 1696.856354
A95: 95 | C95: 8.3718593 | D95: 1351.87634 | E95: 95 | G95: 8.3718593 | H95: 1698.361007
A96: 96 | C96: 8.458793973 | D96: 1355.65595 | E96: 96 | G96: 8.458793973 | H96: 1699.837322
A97: 97 | C97: =0.2+(A97-1)*0.0869346734 -> 8.545728646 | D97: =1855.13044622572*C97/(3.11653694957686+C97) -> 1359.37921 | E97: 97 | G97: =0.2+(E97-1)*0.0869346734 -> 8.545728646 | H97: =1855.13044622572*G97/(0.772775445887083+G97) -> 1701.286091
A98: 98 | C98: 8.63266332 | D98: 1363.047373 | E98: 98 | G98: 8.63266332 | H98: 1702.708077
A99: 99 | C99: 8.719597993 | D99: 1366.66165 | E99: 99 | G99: 8.719597993 | H99: 1704.104018
A100: 100 | C100: 8.806532667 | D100: 1370.223223 | E100: 100 | G100: 8.806532667 | H100: 1705.474621
A101: 101 | C101: 8.89346734 | D101: 1373.733234 | E101: 101 | G101: 8.89346734 | H101: 1706.820571
A102: 102 | C102: 8.980402013 | D102: 1377.192796 | E102: 102 | G102: 8.980402013 | H102: 1708.142527
A103: 103 | C103: 9.067336687 | D103: 1380.602988 | E103: 103 | G103: 9.067336687 | H103: 1709.441125
A104: 104 | C104: 9.15427136 | D104: 1383.964861 | E104: 104 | G104: 9.15427136 | H104: 1710.716978
A105: 105 | C105: 9.241206034 | D105: 1387.279433 | E105: 105 | G105: 9.241206034 | H105: 1711.970679
A106: 106 | C106: 9.328140707 | D106: 1390.547695 | E106: 106 | G106: 9.328140707 | H106: 1713.2028
A107: 107 | C107: 9.41507538 | D107: 1393.770612 | E107: 107 | G107: 9.41507538 | H107: 1714.413893
A108: 108 | C108: 9.502010054 | D108: 1396.949122 | E108: 108 | G108: 9.502010054 | H108: 1715.604491
A109: 109 | C109: 9.588944727 | D109: 1400.084134 | E109: 109 | G109: 9.588944727 | H109: 1716.775112
A110: 110 | C110: 9.675879401 | D110: 1403.176537 | E110: 110 | G110: 9.675879401 | H110: 1717.926253
A111: 111 | C111: 9.762814074 | D111: 1406.227192 | E111: 111 | G111: 9.762814074 | H111: 1719.058397
A112: 112 | C112: 9.849748747 | D112: 1409.236941 | E112: 112 | G112: 9.849748747 | H112: 1720.17201
A113: 113 | C113: 9.936683421 | D113: 1412.206599 | E113: 113 | G113: 9.936683421 | H113: 1721.267543
A114: 114 | C114: 10.02361809 | D114: 1415.136963 | E114: 114 | G114: 10.02361809 | H114: 1722.345433
A115: 115 | C115: 10.11055277 | D115: 1418.028808 | E115: 115 | G115: 10.11055277 | H115: 1723.406103
A116: 116 | C116: 10.19748744 | D116: 1420.882888 | E116: 116 | G116: 10.19748744 | H116: 1724.449963
A117: 117 | C117: 10.28442211 | D117: 1423.699938 | E117: 117 | G117: 10.28442211 | H117: 1725.477408
A118: 118 | C118: 10.37135679 | D118: 1426.480674 | E118: 118 | G118: 10.37135679 | H118: 1726.488823
A119: 119 | C119: 10.45829146 | D119: 1429.225793 | E119: 119 | G119: 10.45829146 | H119: 1727.484581
A120: 120 | C120: 10.54522613 | D120: 1431.935977 | E120: 120 | G120: 10.54522613 | H120: 1728.465041
A121: 121 | C121: 10.63216081 | D121: 1434.611886 | E121: 121 | G121: 10.63216081 | H121: 1729.430554
A122: 122 | C122: 10.71909548 | D122: 1437.254168 | E122: 122 | G122: 10.71909548 | H122: 1730.381459
A123: 123 | C123: 10.80603015 | D123: 1439.863453 | E123: 123 | G123: 10.80603015 | H123: 1731.318085
A124: 124 | C124: 10.89296483 | D124: 1442.440354 | E124: 124 | G124: 10.89296483 | H124: 1732.240752
A125: 125 | C125: 10.9798995 | D125: 1444.985471 | E125: 125 | G125: 10.9798995 | H125: 1733.149768
A126: 126 | C126: 11.06683417 | D126: 1447.499388 | E126: 126 | G126: 11.06683417 | H126: 1734.045436
A127: 127 | C127: 11.15376885 | D127: 1449.982675 | E127: 127 | G127: 11.15376885 | H127: 1734.928045
A128: 128 | C128: 11.24070352 | D128: 1452.43589 | E128: 128 | G128: 11.24070352 | H128: 1735.797881
A129: 129 | C129: =0.2+(A129-1)*0.0869346734 -> 11.3276382 | D129: =1855.13044622572*C129/(3.11653694957686+C129) -> 1454.859574 | E129: 129 | G129: =0.2+(E129-1)*0.0869346734 -> 11.3276382 | H129: =1855.13044622572*G129/(0.772775445887083+G129) -> 1736.655219
A130: 130 | C130: 11.41457287 | D130: 1457.254258 | E130: 130 | G130: 11.41457287 | H130: 1737.500325
A131: 131 | C131: 11.50150754 | D131: 1459.62046 | E131: 131 | G131: 11.50150754 | H131: 1738.33346
A132: 132 | C132: 11.58844222 | D132: 1461.958683 | E132: 132 | G132: 11.58844222 | H132: 1739.154877
A133: 133 | C133: 11.67537689 | D133: 1464.269423 | E133: 133 | G133: 11.67537689 | H133: 1739.96482
A134: 134 | C134: 11.76231156 | D134: 1466.55316 | E134: 134 | G134: 11.76231156 | H134: 1740.763529
A135: 135 | C135: 11.84924624 | D135: 1468.810365 | E135: 135 | G135: 11.84924624 | H135: 1741.551236
A136: 136 | C136: 11.93618091 | D136: 1471.041497 | E136: 136 | G136: 11.93618091 | H136: 1742.328166
A137: 137 | C137: 12.02311558 | D137: 1473.247007 | E137: 137 | G137: 12.02311558 | H137: 1743.094539
A138: 138 | C138: 12.11005026 | D138: 1475.427332 | E138: 138 | G138: 12.11005026 | H138: 1743.850569
A139: 139 | C139: 12.19698493 | D139: 1477.582902 | E139: 139 | G139: 12.19698493 | H139: 1744.596464
A140: 140 | C140: 12.2839196 | D140: 1479.714136 | E140: 140 | G140: 12.2839196 | H140: 1745.332427
A141: 141 | C141: 12.37085428 | D141: 1481.821443 | E141: 141 | G141: 12.37085428 | H141: 1746.058653
A142: 142 | C142: 12.45778895 | D142: 1483.905225 | E142: 142 | G142: 12.45778895 | H142: 1746.775336
A143: 143 | C143: 12.54472362 | D143: 1485.965873 | E143: 143 | G143: 12.54472362 | H143: 1747.482663
A144: 144 | C144: 12.6316583 | D144: 1488.00377 | E144: 144 | G144: 12.6316583 | H144: 1748.180814
A145: 145 | C145: 12.71859297 | D145: 1490.019291 | E145: 145 | G145: 12.71859297 | H145: 1748.869968
A146: 146 | C146: 12.80552764 | D146: 1492.012802 | E146: 146 | G146: 12.80552764 | H146: 1749.550298
A147: 147 | C147: 12.89246232 | D147: 1493.984663 | E147: 147 | G147: 12.89246232 | H147: 1750.221971
A148: 148 | C148: 12.97939699 | D148: 1495.935223 | E148: 148 | G148: 12.97939699 | H148: 1750.885152
A149: 149 | C149: 13.06633166 | D149: 1497.864827 | E149: 149 | G149: 13.06633166 | H149: 1751.540002
A150: 150 | C150: 13.15326634 | D150: 1499.773809 | E150: 150 | G150: 13.15326634 | H150: 1752.186675
A151: 151 | C151: 13.24020101 | D151: 1501.662499 | E151: 151 | G151: 13.24020101 | H151: 1752.825325
A152: 152 | C152: 13.32713568 | D152: 1503.53122 | E152: 152 | G152: 13.32713568 | H152: 1753.456099
A153: 153 | C153: 13.41407036 | D153: 1505.380284 | E153: 153 | G153: 13.41407036 | H153: 1754.079143
A154: 154 | C154: 13.50100503 | D154: 1507.210002 | E154: 154 | G154: 13.50100503 | H154: 1754.694597
A155: 155 | C155: 13.5879397 | D155: 1509.020676 | E155: 155 | G155: 13.5879397 | H155: 1755.3026
A156: 156 | C156: 13.67487438 | D156: 1510.8126 | E156: 156 | G156: 13.67487438 | H156: 1755.903286
A157: 157 | C157: 13.76180905 | D157: 1512.586065 | E157: 157 | G157: 13.76180905 | H157: 1756.496787
A158: 158 | C158: 13.84874372 | D158: 1514.341355 | E158: 158 | G158: 13.84874372 | H158: 1757.08323
A159: 159 | C159: 13.9356784 | D159: 1516.078747 | E159: 159 | G159: 13.9356784 | H159: 1757.66274
A160: 160 | C160: 14.02261307 | D160: 1517.798515 | E160: 160 | G160: 14.02261307 | H160: 1758.23544
A161: 161 | C161: =0.2+(A161-1)*0.0869346734 -> 14.10954774 | D161: =1855.13044622572*C161/(3.11653694957686+C161) -> 1519.500924 | E161: 161 | G161: =0.2+(E161-1)*0.0869346734 -> 14.10954774 | H161: =1855.13044622572*G161/(0.772775445887083+G161) -> 1758.80145
A162: 162 | C162: 14.19648242 | D162: 1521.186236 | E162: 162 | G162: 14.19648242 | H162: 1759.360885
A163: 163 | C163: 14.28341709 | D163: 1522.854708 | E163: 163 | G163: 14.28341709 | H163: 1759.91386
A164: 164 | C164: 14.37035176 | D164: 1524.50659 | E164: 164 | G164: 14.37035176 | H164: 1760.460486
A165: 165 | C165: 14.45728644 | D165: 1526.142129 | E165: 165 | G165: 14.45728644 | H165: 1761.000871
A166: 166 | C166: 14.54422111 | D166: 1527.761566 | E166: 166 | G166: 14.54422111 | H166: 1761.535122
A167: 167 | C167: 14.63115578 | D167: 1529.365139 | E167: 167 | G167: 14.63115578 | H167: 1762.063343
A168: 168 | C168: 14.71809046 | D168: 1530.953078 | E168: 168 | G168: 14.71809046 | H168: 1762.585635
A169: 169 | C169: 14.80502513 | D169: 1532.525611 | E169: 169 | G169: 14.80502513 | H169: 1763.102098
A170: 170 | C170: 14.8919598 | D170: 1534.082962 | E170: 170 | G170: 14.8919598 | H170: 1763.612828
A171: 171 | C171: 14.97889448 | D171: 1535.625349 | E171: 171 | G171: 14.97889448 | H171: 1764.117921
A172: 172 | C172: 15.06582915 | D172: 1537.152987 | E172: 172 | G172: 15.06582915 | H172: 1764.617469
A173: 173 | C173: 15.15276382 | D173: 1538.666086 | E173: 173 | G173: 15.15276382 | H173: 1765.111563
A174: 174 | C174: 15.2396985 | D174: 1540.164853 | E174: 174 | G174: 15.2396985 | H174: 1765.600292
A175: 175 | C175: 15.32663317 | D175: 1541.649491 | E175: 175 | G175: 15.32663317 | H175: 1766.083743
A176: 176 | C176: 15.41356784 | D176: 1543.120199 | E176: 176 | G176: 15.41356784 | H176: 1766.562001
A177: 177 | C177: 15.50050252 | D177: 1544.577171 | E177: 177 | G177: 15.50050252 | H177: 1767.035149
A178: 178 | C178: 15.58743719 | D178: 1546.020599 | E178: 178 | G178: 15.58743719 | H178: 1767.503269
A179: 179 | C179: 15.67437187 | D179: 1547.450672 | E179: 179 | G179: 15.67437187 | H179: 1767.96644
A180: 180 | C180: 15.76130654 | D180: 1548.867573 | E180: 180 | G180: 15.76130654 | H180: 1768.42474
A181: 181 | C181: 15.84824121 | D181: 1550.271484 | E181: 181 | G181: 15.84824121 | H181: 1768.878246
A182: 182 | C182: 15.93517589 | D182: 1551.662583 | E182: 182 | G182: 15.93517589 | H182: 1769.327033
A183: 183 | C183: 16.02211056 | D183: 1553.041044 | E183: 183 | G183: 16.02211056 | H183: 1769.771173
A184: 184 | C184: 16.10904523 | D184: 1554.407039 | E184: 184 | G184: 16.10904523 | H184: 1770.21074
A185: 185 | C185: 16.19597991 | D185: 1555.760736 | E185: 185 | G185: 16.19597991 | H185: 1770.645802
A186: 186 | C186: 16.28291458 | D186: 1557.1023 | E186: 186 | G186: 16.28291458 | H186: 1771.076429
A187: 187 | C187: 16.36984925 | D187: 1558.431894 | E187: 187 | G187: 16.36984925 | H187: 1771.502689
A188: 188 | C188: 16.45678393 | D188: 1559.749677 | E188: 188 | G188: 16.45678393 | H188: 1771.924647
A189: 189 | C189: 16.5437186 | D189: 1561.055806 | E189: 189 | G189: 16.5437186 | H189: 1772.342368
A190: 190 | C190: 16.63065327 | D190: 1562.350435 | E190: 190 | G190: 16.63065327 | H190: 1772.755916
A191: 191 | C191: 16.71758795 | D191: 1563.633715 | E191: 191 | G191: 16.71758795 | H191: 1773.165353
A192: 192 | C192: 16.80452262 | D192: 1564.905794 | E192: 192 | G192: 16.80452262 | H192: 1773.57074
A193: 193 | C193: =0.2+(A193-1)*0.0869346734 -> 16.89145729 | D193: =1855.13044622572*C193/(3.11653694957686+C193) -> 1566.166819 | E193: 193 | G193: =0.2+(E193-1)*0.0869346734 -> 16.89145729 | H193: =1855.13044622572*G193/(0.772775445887083+G193) -> 1773.972137
A194: 194 | C194: 16.97839197 | D194: 1567.416934 | E194: 194 | G194: 16.97839197 | H194: 1774.369602
A195: 195 | C195: 17.06532664 | D195: 1568.656278 | E195: 195 | G195: 17.06532664 | H195: 1774.763194
A196: 196 | C196: 17.15226131 | D196: 1569.884991 | E196: 196 | G196: 17.15226131 | H196: 1775.152967
A197: 197 | C197: 17.23919599 | D197: 1571.103209 | E197: 197 | G197: 17.23919599 | H197: 1775.538978
A198: 198 | C198: 17.32613066 | D198: 1572.311066 | E198: 198 | G198: 17.32613066 | H198: 1775.92128
A199: 199 | C199: 17.41306533 | D199: 1573.508693 | E199: 199 | G199: 17.41306533 | H199: 1776.299928
A200: 200 | C200: 17.50000001 | D200: 1574.69622 | E200: 200 | G200: 17.50000001 | H200: 1776.674972
